{"text_format":"1","workbook":"xlsx","n_sheets":3,"sheets":["CasaPLUS","CasaMAR","Hoja1"],"not_rendered":{"charts":0,"images":2,"macros":1,"external_links":0,"defined_names":2,"comments":0,"pivot_tables":0},"unopened":[],"bounds":{"document_bytes":16777216,"sheet_cells":100000,"rows_first":2000,"rows_last":500,"rows_between":2000,"halvings":0,"cell_chars":16384,"cell_head_chars":4096},"cells_cut":0,"cells_raw":0,"read":"whole","date_system":"1900"}

{"sheet":"CasaPLUS","index":0,"n_rows":134,"n_cols":29,"rows_kept":134,"cut":false,"hidden":false,"merged":[[10,13,10,15],[10,9,11,9],[10,11,11,11],[10,12,11,12],[9,2,9,15],[10,8,11,8],[10,10,11,10],[10,2,11,4],[45,2,45,4],[46,2,46,4],[34,2,34,4],[36,2,36,4],[37,2,37,4],[38,2,38,4],[39,2,39,4],[40,2,40,4],[41,2,41,4],[42,2,42,16],[43,5,44,7],[35,2,35,4],[43,2,43,4],[22,23,22,24],[22,21,22,22],[22,19,22,20],[31,5,32,5],[22,5,23,5],[22,8,22,9],[31,6,32,6],[27,11,27,16],[31,9,32,9],[31,10,32,10],[47,2,47,4],[48,2,48,4],[49,2,50,4],[55,2,55,4],[51,2,51,4],[52,2,52,4],[53,2,53,4],[54,2,54,4],[162,2,162,3],[158,2,158,3],[159,2,159,3],[129,2,133,2],[49,5,50,5],[161,2,161,3],[77,2,77,16],[49,6,50,6],[49,7,50,7],[56,2,56,4],[57,2,57,4],[160,2,160,3],[59,2,59,4],[58,2,58,4],[101,2,101,16],[73,2,73,16],[25,2,25,4],[26,2,26,4],[27,2,27,4],[28,2,28,4],[31,8,32,8],[31,7,32,7],[25,5,25,7],[31,2,31,4],[32,2,32,4],[6,4,6,8],[6,9,6,16],[7,15,7,16],[22,11,23,15],[1,2,1,16],[4,3,4,16],[3,3,3,16],[5,14,5,16],[5,3,5,8],[5,10,5,11],[22,2,23,4],[20,15,20,16],[22,6,23,6],[22,7,23,7],[12,2,12,4],[13,3,13,16]]}
[]
[null,null,"COTIZACIÓN SEGURO DOMICILIARIO CASAPLUSV7.1"]
[null,null,null,null,null,null,null,null,null,null,null,null,null,null,null,null,null,null,null,null,"Dólares (US$)","US$","A. Programa Básico",null,null,null,"Concreto Armado","Departamento","SI"]
[null,null,"CONTRATANTE",null,null,null,null,null,null,null,null,null,null,null,null,null,null,null,null,null,"Sol ( S/ )","S/","B. Programa Básico + Programa Full",null,null,null,"Ladrillo y Cemento","Casa","NO"]
[null,null,"ASEGURADO",null,null,null,null,null,null,null,null,null,null,null,null,null,null,null,null,null,null,null,null,null,null,null,"Estructura de Acero"]
[null,null,"CORREDOR",null,null,null,null,null,null,"Oficina ",null,null,"Ejecutivo Comercial ",null,null,null,null,null,null,null,"Tipo de Cambio",4.0999999999999996,null,null,null,null,"Madera y/o Adobe y/o quincha"]
[null,null,"ENDOSATARIO","NO","Nombre del Endosatario"]
[null,null,"MONEDA","Dólares (US$)",null,null,null,null,"Fecha Cotización",{"$f":"TODAY()","v":"2021-08-17"},"Validez de la cotización ",null,"15 días ","Vigencia del seguro",null,"1 Año ",null,null,null,null,"monto minimo C",500]
[]
[null,null,"DATOS SBS",null,null,null,null,null,null,null,null,null,null,null,null,null,null,null,null,null,"limite SA",1500000]
[null,null,"Ubicación del riesgo",null,null,null,null,null,"Tipo de Vivienda ","Tipo Estructura","Nro. Pisos","Nro. Sótanos","Año Construc.","Valor Declarado"]
[null,null,null,null,null,null,null,null,null,null,null,null,null,"Edificio","Contenido","Total",null,null,null,null,"valor verdadero","Excede limite permitido"]
[null,null,null,null,null,null,null,null,"Departamento",null,null,null,null,150000,5000,{"$f":"SUM(N13:O13)","v":155000},null,null,null,null,"valor verdadero","Debe asegurar edificio"]
[null,null,"COBERTURAS SOLICITADAS","B. Programa Básico + Programa Full"]
[null,null,null,null,null,null,null,null,null,null,null,null,null,null,null,null,null,null,null,null,"valor verdadero","Debe asegurar contenido"]
[null,null,"Plan","Moneda","Prima Comercial",null,null,null,"Prima Comercial + IGV Anual","Descuento","Prima Comercial + IGV Anual",null,{"$f":"IF(OR(M17=V13,M18=V12),\"Observaciones\",\" \")","v":" "}]
[null,null,"Plan Estandar",{"$f":"IF($D$8=\"Dólares (US$)\",\"US$\",\"S/\")","v":"US$"},{"$f":"IF(OR(M17=V13,M18=V12,M19=V15),\"No Aplica\",IF(D8=U3,I128,M128))","v":299.47250000000003},null,null,null,{"$f":"IFERROR(E17*1.18,\"No Aplica\")","v":353.37754999999999},0,{"$f":"IF(E17=\"No Aplica\",\"No aplica\",IF(AND($D$8=U3,(I17*(1-J17)<I120)),I120,IF(AND($D$8=U4,I17*(1-J17)<M120),M120,I17*(1-J17))))","v":353.37754999999999},null,{"$f":"IF(O13>N13,V13,\" \")","v":" "}]
[null,null,"Plan Premium",{"$f":"D17","v":"US$"},{"$f":"IF(OR(M17=V13,M18=V12),\"No Aplica\",IF(D8=U3,J128,N128))","v":314.92250000000001},null,null,null,{"$f":"IFERROR(E18*1.18,\"No Aplica\")","v":371.60854999999998},{"$f":"J17","v":0},{"$f":"IF(E18=\"No Aplica\",\"No aplica\",IF(AND($D$8=U3,(I18*(1-J17)<J120)),J120,IF(AND($D$8=U4,I18*(1-J17)<N120),N120,I18*(1-J17))))","v":371.60854999999998},null,{"$f":"IF(AND(D8=U3,P13>V10),V12,IF(AND(D8=U4,P13>V10*V6),V12,\" \"))","v":" "}]
[null,null,"Plan Gold",{"$f":"D18","v":"US$"},{"$f":"IF(OR(M17=V13,M18=V12),\"No Aplica\",IF(D8=U3,K128,O128))","v":325.22250000000003},null,null,null,{"$f":"IFERROR(E19*1.18,\"No Aplica\")","v":383.76255000000003},{"$f":"J17","v":0},{"$f":"IF(E19=\"No aplica\",\"No aplica\",IF(AND($D$8=U3,(I19*(1-J17)<K120)),K120,IF(AND($D$8=U4,I19*(1-J17)<O120),O120,I19*(1-J17))))","v":383.76255000000003},null,{"$f":"IF(O13<V8*2,V15,\" \")","v":" "}]
[null,null,null,null,null,null,null,null,null,null,null,null,null,null,{"$f":"+IF(D14=W3,1,0)","v":0}]
[]
[]
[null,null,"Coberturas Principales",null,null,"SA Maxima Plan Estandar","SA Maxima Plan Premium","SA Maxima Plan Gold","Suma Asegurada",null,{"$f":"IF(D8=U3,V3,V4)","v":"US$"},"Deducibles",null,null,null,null,null,null,null,"Plan Estandar",null,"Plan Premium",null,"Plan Gold"]
[null,null,null,null,null,null,null,null,"P. Estandar","P. Premium","P. Gold",null,null,null,null,null,null,null,null,"SA Dolares","SA Soles ","SA Dolares","SA Soles ","SA Dolares","SA Soles "]
[null,null,"I. PROGRAMA BASICO"]
[null,null,"Este seguro cubre la destrucción o daño físico directo de la vivienda y su contenido como consecuencia directa de: ",null,null,null,null,null,{"$f":"+P13","v":155000},{"$f":"+P13","v":155000},{"$f":"+P13","v":155000}]
[null,null,"Incendio y/o rayo, explosión, daños por agua, lluvia e inundación,  caída de aeronaves, impacto de vehículos terrestres, daños por humo.",null,null,"Hasta el 100% de la Suma Asegurada (SA) de la Vivienda + Contenido",null,null,{"$f":"P13","v":155000},{"$f":"P13","v":155000},{"$f":"P13","v":155000},{"$f":"Hoja1!B4","v":"10% del Monto Indemnizable mínimo US$ 200"}]
[null,null,"Terremoto, temblor, erupción volcánica, maremoto (Tsunami), salida de mar, marejada, oleaje.",null,null,null,null,null,{"$f":"P13","v":155000},{"$f":"P13","v":155000},{"$f":"P13","v":155000},{"$f":"Hoja1!B5","v":"1% de la Suma Asegurada de la Vivienda + Contenido, minimo US$ 500,lo que resulte mayor"}]
[null,null,"Huelga y conmoción civil, daño malicioso, vandalismo y/o terrorismo, limite agregado vigencia hasta.",null,null,null,null,null,{"$f":"P13","v":155000},{"$f":"P13","v":155000},{"$f":"P13","v":155000},{"$f":"Hoja1!B6","v":"5% del monto indemnizable mínimo US$ 200"}]
[]
[]
[null,null,null,null,null,50000,100000,200000,{"$f":"IF($D$8=U3,T33,U33)","v":50000},{"$f":"IF($D$8=U3,V33,W33)","v":100000},{"$f":"IF($D$8=U3,X33,Y33)","v":200000}]
[null,null,"Responsabilidad Civil Extracontractual Frente a Terceros, por evento y en agregado vigencia hasta:",null,null,null,null,null,null,null,null,{"$f":"CONCATENATE(Hoja1!C9,\" \",Hoja1!D9,\" \",Hoja1!E9, ,Hoja1!F9)","v":" US$ 200"},null,null,null,null,null,null,null,{"$f":"+F32","v":50000},{"$f":"+F32*V6","v":204999.99999999997},{"$f":"+G32","v":100000},{"$f":"+G32*V6","v":409999.99999999994},{"$f":"+H32","v":200000},{"$f":"+H32*V6","v":819999.99999999988}]
[null,null,"Coberturas Adicionales "]
[null,null,"Rotura de vidrios, espejos y unidades sanitarias, hasta el 20% de la Suma Asegurada de la Vivienda, máximo: ",null,null,10000,20000,30000,{"$f":"IF($D$8=U3,T35,U35)","v":10000},{"$f":"IF($D$8=U3,V35,W35)","v":20000},{"$f":"IF($D$8=U3,X35,Y35)","v":30000},{"$f":"CONCATENATE(Hoja1!C7,\" \",Hoja1!D7,\" \",Hoja1!E7, ,Hoja1!F7)","v":"10% del Monto Indemnizable, mínimo US$ 30"},null,null,null,null,null,null,null,{"$f":"IF($N$13*0.2<F35,$N$13*0.2,F35)","v":10000},{"$f":"IF($N$13*0.2<F35*$V$6,$N$13*0.2,F35*$V$6)","v":30000},{"$f":"IF($N$13*0.2<G35,$N$13*0.2,G35)","v":20000},{"$f":"IF($N$13*0.2<G35*$V$6,$N$13*0.2,G35*$V$6)","v":30000},{"$f":"IF($N$13*0.2<H35,$N$13*0.2,H35)","v":30000},{"$f":"IF($N$13*0.2<H35*$V$6,$N$13*0.2,H35*$V$6)","v":30000}]
[null,null,"Gastos Extras, hasta el 20% de la Suma Asegurada de la Vivienda + Contenido, máximo:",null,null,30000,40000,50000,{"$f":"IF($D$8=U3,T36,U36)","v":30000},{"$f":"IF($D$8=U3,V36,W36)","v":31000},{"$f":"IF($D$8=U3,X36,Y36)","v":31000},"El de la cobertura afectada",null,null,null,null,null,null,null,{"$f":"IF($P$13*0.2<F36,$P$13*0.2,F36)","v":30000},{"$f":"IF($P$13*0.2<F36*$V$6,$P$13*0.2,F36*$V$6)","v":31000},{"$f":"IF($P$13*0.2<G36,$P$13*0.2,G36)","v":31000},{"$f":"IF($P$13*0.2<G36*$V$6,$P$13*0.2,G36*$V$6)","v":31000},{"$f":"IF($P$13*0.2<H36,$P$13*0.2,H36)","v":31000},{"$f":"IF($P$13*0.2<H36*$V$6,$P$13*0.2,H36*$V$6)","v":31000}]
[null,null,"Gastos de remoción de escombros, hasta el 20% de la Suma Asegurada de la Vivienda + Contenido, máximo:",null,null,30000,40000,50000,{"$f":"IF($D$8=U3,T37,U37)","v":30000},{"$f":"IF($D$8=U3,V37,W37)","v":31000},{"$f":"IF($D$8=U3,X37,Y37)","v":31000},"Sin Deducible",null,null,null,null,null,null,null,{"$f":"IF($P$13*0.2<F37,$P$13*0.2,F37)","v":30000},{"$f":"IF($P$13*0.2<F37*$V$6,$P$13*0.2,F37*$V$6)","v":31000},{"$f":"IF($P$13*0.2<G37,$P$13*0.2,G37)","v":31000},{"$f":"IF($P$13*0.2<G37*$V$6,$P$13*0.2,G37*$V$6)","v":31000},{"$f":"IF($P$13*0.2<H37,$P$13*0.2,H37)","v":31000},{"$f":"IF($P$13*0.2<H37*$V$6,$P$13*0.2,H37*$V$6)","v":31000}]
[null,null,"Gastos de extinción y contención del siniestro, hasta el 20% de la Suma Asegurada de la Vivienda + Contenido, máximo:",null,null,30000,40000,50000,{"$f":"IF($D$8=U3,T38,U38)","v":30000},{"$f":"IF($D$8=U3,V38,W38)","v":31000},{"$f":"IF($D$8=U3,X38,Y38)","v":31000},"Sin Deducible",null,null,null,null,null,null,null,{"$f":"IF($P$13*0.2<F38,$P$13*0.2,F38)","v":30000},{"$f":"IF($P$13*0.2<F38*$V$6,$P$13*0.2,F38*$V$6)","v":31000},{"$f":"IF($P$13*0.2<G38,$P$13*0.2,G38)","v":31000},{"$f":"IF($P$13*0.2<G38*$V$6,$P$13*0.2,G38*$V$6)","v":31000},{"$f":"IF($P$13*0.2<H38,$P$13*0.2,H38)","v":31000},{"$f":"IF($P$13*0.2<H38*$V$6,$P$13*0.2,H38*$V$6)","v":31000}]
[null,null,"Robo de instalaciones fijas, hasta el 20% de la Suma Asegurada de la Vivienda, máximo:",null,null,10000,20000,30000,{"$f":"IF($D$8=U3,T39,U39)","v":10000},{"$f":"IF($D$8=U3,V39,W39)","v":20000},{"$f":"IF($D$8=U3,X39,Y39)","v":30000},{"$f":"CONCATENATE(Hoja1!C8,\" \",Hoja1!D8,\" \",Hoja1!E8, ,Hoja1!F8)","v":"15% del Monto Indemnizable, mínimo US$ 200"},null,null,null,null,null,null,null,{"$f":"IF($N$13*0.2<F39,$N$13*0.2,F39)","v":10000},{"$f":"IF($N$13*0.2<F39*$V$6,$N$13*0.2,F39*$V$6)","v":30000},{"$f":"IF($N$13*0.2<G39,$N$13*0.2,G39)","v":20000},{"$f":"IF($N$13*0.2<G39*$V$6,$N$13*0.2,G39*$V$6)","v":30000},{"$f":"IF($N$13*0.2<H39,$N$13*0.2,H39)","v":30000},{"$f":"IF($N$13*0.2<H39*$V$6,$N$13*0.2,H39*$V$6)","v":30000}]
[null,null,"Gastos por emergencias médicas a terceros hasta US$ 1,000 por persona, y en agregado vigencia máximo:",null,null,1000,2000,3000,{"$f":"IF($D$8=U3,T40,U40)","v":1000},{"$f":"IF($D$8=U3,V40,W40)","v":2000},{"$f":"IF($D$8=U3,X40,Y40)","v":3000},"Sin Deducible",null,null,null,null,null,null,null,{"$f":"+F40","v":1000},{"$f":"+F40*V6","v":4100},{"$f":"+G40","v":2000},{"$f":"+G40*V6","v":8200},{"$f":"+H40","v":3000},{"$f":"+H40*V6","v":12299.999999999998}]
[null,null,"Responsabilidad Civil Patronal (frente al trabajador del hogar), por evento y en agregado vigencia hasta:",null,null,10000,15000,20000,{"$f":"IF($D$8=U3,T41,U41)","v":10000},{"$f":"IF($D$8=U3,V41,W41)","v":15000},{"$f":"IF($D$8=U3,X41,Y41)","v":20000},"Sin Deducible",null,null,null,null,null,null,null,{"$f":"+F41","v":10000},{"$f":"+F41*V6","v":41000},{"$f":"+G41","v":15000},{"$f":"+G41*V6","v":61499.999999999993},{"$f":"+H41","v":20000},{"$f":"+H41*V6","v":82000}]
[null,null,"Responsabilidad civil por posesión de mascotas por evento y en agregado vigencia, hasta:",null,null,1000,2000,3000,{"$f":"IF($D$8=U3,T42,U42)","v":1000},{"$f":"IF($D$8=U3,V42,W42)","v":2000},{"$f":"IF($D$8=U3,X42,Y42)","v":3000},"Sin Deducible",null,null,null,null,null,null,null,{"$f":"+F42","v":1000},{"$f":"+F42*V6","v":4100},{"$f":"+G42","v":2000},{"$f":"+G42*V6","v":8200},{"$f":"+H42","v":3000},{"$f":"+H42*V6","v":12299.999999999998}]
[null,null,"II. PROGRAMA FULL"]
[null,null,"Robo de Bienes Contenidos en la Vivienda hasta:",null,null,"Hasta el 100% de la Suma Asegurada del Contenido",null,null,{"$f":"IF($O$13<V8,\"No Aplica\",$O$13)","v":5000},{"$f":"IF($O$13<V8,\"No Aplica\",$O$13)","v":5000},{"$f":"IF($O$13<V8,\"No Aplica\",$O$13)","v":5000},{"$f":"IF(T46=\"No Aplica\",\"No Aplica\", Hoja1!B10)","v":"15% del Monto Indemnizable, mínimo US$ 500"}]
[]
[null,null,"Robo de Contenidos Especiales (joyas, alhajas, perlas, platería, relojes personales, obras de arte, pieles, instrumentos musicales y colecciones en general) dentro o fuera de los predios, con un límite por bien de US$1,000. La Suma Asegurada está limitada al 30% de la suma asegurada del Contenido, hasta: ",null,null,3000,5000,15000,{"$f":"IF($D$8=U3,T46,U46)","v":1500},{"$f":"IF($D$8=U3,V46,W46)","v":1500},{"$f":"IF($D$8=U3,X46,Y46)","v":1500},{"$f":"IF(T46=\"No Aplica\",\"No Aplica\", Hoja1!B11)","v":"15% del Monto Indemnizable, mínimo US$ 300"},null,null,null,null,null,null,null,{"$f":"IF($O$13<V8,\"No Aplica\",IF($O$13*0.3<F46,$O$13*0.3,F46))","v":1500},{"$f":"IF($O$13<V8,\"No Aplica\",IF($O$13*0.3<F46*$V$6,$O$13*0.3,F46*$V$6))","v":1500},{"$f":"IF($O$13<V8,\"No Aplica\",IF($O$13*0.3<G46,$O$13*0.3,G46))","v":1500},{"$f":"IF($O$13<V8,\"No Aplica\",IF($O$13*0.3<G46*$V$6,$O$13*0.3,G46*$V$6))","v":1500},{"$f":"IF($O$13<V8,\"No Aplica\",IF($O$13*0.3<H46,$O$13*0.3,H46))","v":1500},{"$f":"IF($O$13<V8,\"No Aplica\",IF($O$13*0.3<H46*$V$6,$O$13*0.3,H46*$V$6))","v":1500}]
[null,null,"Robo de dinero en Efectivo dentro de la Vivienda, hasta:",null,null,500,750,1000,{"$f":"IF($D$8=U3,T47,U47)","v":500},{"$f":"IF($D$8=U3,V47,W47)","v":750},{"$f":"IF($D$8=U3,X47,Y47)","v":1000},{"$f":"IF(T47=\"No Aplica\",\"No Aplica\",Hoja1!B12)","v":" US$ 50"},null,null,null,null,null,null,null,{"$f":"IF($O$13<V8,\"No Aplica\",F47)","v":500},{"$f":"IF($O$13<V8,\"No Aplica\",F47*$V$6)","v":2050},{"$f":"IF($O$13<V8,\"No Aplica\",G47)","v":750},{"$f":"IF($O$13<V8,\"No Aplica\",G47*$V$6)","v":3074.9999999999995},{"$f":"IF($O$13<V8,\"No Aplica\",H47)","v":1000},{"$f":"IF($O$13<V8,\"No Aplica\",H47*$V$6)","v":4100}]
[null,null,"Robo de dinero en tránsito solo por asalto, hasta:",null,null,500,750,1000,{"$f":"IF($D$8=U3,T48,U48)","v":500},{"$f":"IF($D$8=U3,V48,W48)","v":750},{"$f":"IF($D$8=U3,X48,Y48)","v":1000},{"$f":"IF(T48=\"No Aplica\",\"No Aplica\", Hoja1!B13)","v":" US$ 50"},null,null,null,null,null,null,null,{"$f":"IF(O13<V8,\"No Aplica\",F48)","v":500},{"$f":"IF(O13<V8,\"No Aplica\",F48*$V$6)","v":2050},{"$f":"IF($O$13<V8,\"No Aplica\",G48)","v":750},{"$f":"IF($O$13<V8,\"No Aplica\",G48*$V$6)","v":3074.9999999999995},{"$f":"IF($O$13<V8,\"No Aplica\",H48)","v":1000},{"$f":"IF($O$13<V8,\"No Aplica\",H48*$V$6)","v":4100}]
[null,null,"Daños internos de equipos electrónicos y equipos eléctricos, hasta el 10% de la Suma Asegurada del Contenido, máximo:",null,null,3000,4000,5000,{"$f":"IF($D$8=U3,T49,U49)","v":500},{"$f":"IF($D$8=U3,V49,W49)","v":500},{"$f":"IF($D$8=U3,X49,Y49)","v":500},{"$f":"IF(T49=\"No Aplica\",\"No Aplica\", Hoja1!B14)","v":"10% del Monto Indemnizable, mínimo US$ 50"},null,null,null,null,null,null,null,{"$f":"IF($O$13<V8,\"No Aplica\",IF($O$13*0.1<F49,$O$13*0.1,F49))","v":500},{"$f":"IF($O$13<V8,\"No Aplica\",IF($O$13*0.1<F49*$V$6,$O$13*0.1,F49*$V$6))","v":500},{"$f":"IF($O$13<V8,\"No Aplica\",IF($O$13*0.1<G49,$O$13*0.1,G49))","v":500},{"$f":"IF($O$13<V8,\"No Aplica\",IF($O$13*0.1<G49*$V$6,$O$13*0.1,G49*$V$6))","v":500},{"$f":"IF($O$13<V8,\"No Aplica\",IF($O$13*0.1<H49,$O$13*0.1,H49))","v":500},{"$f":"IF($O$13<V8,\"No Aplica\",IF($O$13*0.1<H49*$V$6,$O$13*0.1,H49*$V$6))","v":500}]
[null,null,"Asistencia médica urgente por lesiones en un robo con un límite por persona de US$1,000 y en agregado vigencia máximo:",null,null,5000,7500,10000]
[null,null,null,null,null,null,null,null,{"$f":"IF($D$8=U3,T51,U51)","v":5000},{"$f":"IF($D$8=U3,V51,W51)","v":7500},{"$f":"IF($D$8=U3,X51,Y51)","v":10000},{"$f":"IF(T51=\"No Aplica\",\"No Aplica\", Hoja1!B15)","v":"Sin deducible US$ "},null,null,null,null,null,null,null,{"$f":"IF($O$13<V8,\"No Aplica\",F50)","v":5000},{"$f":"IF($O$13<V8,\"No Aplica\",F50*$V$6)","v":20500},{"$f":"IF($O$13<V8,\"No Aplica\",G50)","v":7500},{"$f":"IF($O$13<V8,\"No Aplica\",G50*$V$6)","v":30749.999999999996},{"$f":"IF($O$13<V8,\"No Aplica\",H50)","v":10000},{"$f":"IF($O$13<V8,\"No Aplica\",H50*$V$6)","v":41000}]
[null,null,"Alojamiento temporal por inhabilitación de la vivienda, con un límite mensual de US$ 1,000 y en agregado vigencia máximo: ",null,null,3000,5000,10000,{"$f":"IF(I51=\"No Aplica\",\" No Aplica\",IF($D$8=U3,T52,U52))","v":3000},{"$f":"IF(I51=\"No Aplica\",\" No Aplica\",IF($D$8=U3,V52,W52))","v":5000},{"$f":"IF(I51=\"No Aplica\",\" No Aplica\",IF($D$8=U3,X52,Y52))","v":10000},{"$f":"IF(T52=\"No Aplica\",\"No Aplica\", Hoja1!B17)","v":"Sin deducible  "},null,null,null,null,null,null,null,{"$f":"IF($O$13<V8,\"No Aplica\",F52)","v":3000},{"$f":"IF($O$13<V8,\"No Aplica\",F52*$V$6)","v":12299.999999999998},{"$f":"IF($O$13<V8,\"No Aplica\",G52)","v":5000},{"$f":"IF($O$13<V8,\"No Aplica\",G52*$V$6)","v":20500},{"$f":"IF($O$13<V8,\"No Aplica\",H52)","v":10000},{"$f":"IF($O$13<V8,\"No Aplica\",H52*$V$6)","v":41000}]
[null,null,"Daños durante el traslado del contenido asegurado al alojamiento temporal, hasta el  50% de la Suma Asegurada del Contenido, máximo:",null,null,3000,5000,10000,{"$f":"IF($D$8=U3,T53,U53)","v":2500},{"$f":"IF($D$8=U3,V53,W53)","v":2500},{"$f":"IF($D$8=U3,X53,Y53)","v":2500},{"$f":"IF(T53=\"No Aplica\",\"No Aplica\", Hoja1!B18)","v":"10% del Monto Indemnizable, mínimo US$ 50"},null,null,null,null,null,null,null,{"$f":"IF($O$13<V8,\"No Aplica\",IF($O$13*0.5<F53,$O$13*0.5,F53))","v":2500},{"$f":"IF($O$13<V8,\"No Aplica\",IF($O$13*0.5<F53*$V$6,$O$13*0.5,F53*$V$6))","v":2500},{"$f":"IF($O$13<V8,\"No Aplica\",IF($O$13*0.5<G53,$O$13*0.5,G53))","v":2500},{"$f":"IF($O$13<V8,\"No Aplica\",IF($O$13*0.5<G53*$V$6,$O$13*0.5,G53*$V$6))","v":2500},{"$f":"IF($O$13<V8,\"No Aplica\",IF($O$13*0.5<H53,$O$13*0.5,H53))","v":2500},{"$f":"IF($O$13<V8,\"No Aplica\",IF($O$13*0.5<H53*$V$6,$O$13*0.5,H53*$V$6))","v":2500}]
[null,null,"Perdida de alimentos en equipos de refrigeración, hasta el 5% de la Suma Asegurada del Contenido, máximo:",null,null,750,1000,1500,{"$f":"IF($D$8=U3,T54,U54)","v":250},{"$f":"IF($D$8=U3,V54,W54)","v":250},{"$f":"IF($D$8=U3,X54,Y54)","v":250},{"$f":"IF(T54=\"No Aplica\",\"No Aplica\", Hoja1!B19)","v":"10% del Monto Indemnizable, mínimo US$ 50"},null,null,null,null,null,null,null,{"$f":"IF($O$13<V8,\"No Aplica\",IF($O$13*0.05<F54,$O$13*0.05,F54))","v":250},{"$f":"IF($O$13<V8,\"No Aplica\",IF($O$13*0.05<F54*$V$6,$O$13*0.05,F54*$V$6))","v":250},{"$f":"IF($O$13<V8,\"No Aplica\",IF($O$13*0.05<G54,$O$13*0.05,G54))","v":250},{"$f":"IF($O$13<V8,\"No Aplica\",IF($O$13*0.05<G54*$V$6,$O$13*0.05,G54*$V$6))","v":250},{"$f":"IF($O$13<V8,\"No Aplica\",IF($O$13*0.05<H54,$O$13*0.05,H54))","v":250},{"$f":"IF($O$13<V8,\"No Aplica\",IF($O$13*0.05<H54*$V$6,$O$13*0.05,H54*$V$6))","v":250}]
[null,null,"Pérdida de equipaje por viaje dentro o fuera del país, hasta el 10% de la Suma Asegurada del Contenido, máximo:",null,null,750,1000,1500,{"$f":"IF($D$8=U3,T55,U55)","v":500},{"$f":"IF($D$8=U3,V55,W55)","v":500},{"$f":"IF($D$8=U3,X55,Y55)","v":500},{"$f":"IF(T55=\"No Aplica\",\"No Aplica\", Hoja1!B20)","v":"10% del Monto Indemnizable, mínimo US$ 50"},null,null,null,null,null,null,null,{"$f":"IF($O$13<V8,\"No Aplica\",IF($O$13*0.1<F55,$O$13*0.1,F55))","v":500},{"$f":"IF($O$13<V8,\"No Aplica\",IF($O$13*0.1<F55*$V$6,$O$13*0.1,F55*$V$6))","v":500},{"$f":"IF($O$13<V8,\"No Aplica\",IF($O$13*0.1<G55,$O$13*0.1,G55))","v":500},{"$f":"IF($O$13<V8,\"No Aplica\",IF($O$13*0.1<G55*$V$6,$O$13*0.1,G55*$V$6))","v":500},{"$f":"IF($O$13<V8,\"No Aplica\",IF($O$13*0.1<H55,$O$13*0.1,H55))","v":500},{"$f":"IF($O$13<V8,\"No Aplica\",IF($O$13*0.1<H55*$V$6,$O$13*0.1,H55*$V$6))","v":500}]
[null,null,"Deshonestidad o apropiación ilícita de trabajadores del hogar, por evento y en agregado vigencia hasta:",null,null,750,1000,2000,{"$f":"IF($D$8=U3,T56,U56)","v":750},{"$f":"IF($D$8=U3,V56,W56)","v":1000},{"$f":"IF($D$8=U3,X56,Y56)","v":2000},{"$f":"IF(T56=\"No Aplica\",\"No Aplica\", Hoja1!B21)","v":"10% del Monto Indemnizable, mínimo US$ 200"},null,null,null,null,null,null,null,{"$f":"IF($O$13<V8,\"No Aplica\",F56)","v":750},{"$f":"IF($O$13<V8,\"No Aplica\",(F56*$V$6))","v":3074.9999999999995},{"$f":"IF($O$13<V8,\"No Aplica\",G56)","v":1000},{"$f":"IF($O$13<V8,\"No Aplica\",(G56*$V$6))","v":4100},{"$f":"IF($O$13<V8,\"No Aplica\",H56)","v":2000},{"$f":"IF($O$13<V8,\"No Aplica\",(H56*$V$6))","v":8200}]
[null,null,"Compensación por Muerte accidental del Asegurado o de su cónyuge o conviviente ",null,null,7500,10000,20000,{"$f":"IF($D$8=U3,T57,U57)","v":7500},{"$f":"IF($D$8=U3,V57,W57)","v":10000},{"$f":"IF($D$8=U3,X57,Y57)","v":20000},{"$f":"IF(T57=\"No Aplica\",\"No Aplica\", Hoja1!B22)","v":"Sin deducible  "},null,null,null,null,null,null,null,{"$f":"IF($O$13<V8,\"No Aplica\",F57)","v":7500},{"$f":"IF($O$13<V8,\"No Aplica\",(F57*$V$6))","v":30749.999999999996},{"$f":"IF($O$13<V8,\"No Aplica\",G57)","v":10000},{"$f":"IF($O$13<V8,\"No Aplica\",(G57*$V$6))","v":41000},{"$f":"IF($O$13<V8,\"No Aplica\",H57)","v":20000},{"$f":"IF($O$13<V8,\"No Aplica\",(H57*$V$6))","v":82000}]
[null,null,"Gastos de Curación de empleados (Trabajadores del hogar), hasta  US$ 1,000 por evento, y en agregado vigencia hasta:",null,null,1000,2000,3000,{"$f":"IF($D$8=U3,T58,U58)","v":1000},{"$f":"IF($D$8=U3,V58,W58)","v":2000},{"$f":"IF($D$8=U3,X58,Y58)","v":3000},{"$f":"IF(T58=\"No Aplica\",\"No Aplica\", Hoja1!B23)","v":"Sin deducible  "},null,null,null,null,null,null,null,{"$f":"IF($O$13<V8,\"No Aplica\",F58)","v":1000},{"$f":"IF($O$13<V8,\"No Aplica\",(F58*$V$6))","v":4100},{"$f":"IF($O$13<V8,\"No Aplica\",G58)","v":2000},{"$f":"IF($O$13<V8,\"No Aplica\",(G58*$V$6))","v":8200},{"$f":"IF($O$13<V8,\"No Aplica\",H58)","v":3000},{"$f":"IF($O$13<V8,\"No Aplica\",(H58*$V$6))","v":12299.999999999998}]
[null,null,"Gastos de sepelio para el asegurado o su cónyuge o hijos, hasta",null,null,1000,2000,3000,{"$f":"IF($D$8=U3,T59,U59)","v":1000},{"$f":"IF($D$8=U3,V59,W59)","v":2000},{"$f":"IF($D$8=U3,X59,Y59)","v":3000},{"$f":"IF(T59=\"No Aplica\",\"No Aplica\", Hoja1!B24)","v":"Sin deducible  "},null,null,null,null,null,null,null,{"$f":"IF(O13<V8,\"No Aplica\",F59)","v":1000},{"$f":"IF(O13<V8,\"No Aplica\",(F59*$V$6))","v":4100},{"$f":"IF($O$13<V8,\"No Aplica\",G59)","v":2000},{"$f":"IF($O$13<V8,\"No Aplica\",(G59*$V$6))","v":8200},{"$f":"IF($O$13<V8,\"No Aplica\",H59)","v":3000},{"$f":"IF($O$13<V8,\"No Aplica\",(H59*$V$6))","v":12299.999999999998}]
[null,null,"Gastos de sepelio para el trabajador del hogar, hasta",null,null,1000,2000,3000,{"$f":"IF($D$8=U3,T60,U60)","v":1000},{"$f":"IF($D$8=U3,V60,W60)","v":2000},{"$f":"IF($D$8=U3,X60,Y60)","v":3000},{"$f":"IF(T60=\"No Aplica\",\"No Aplica\", Hoja1!B25)","v":"Sin deducible  "},null,null,null,null,null,null,null,{"$f":"IF(O13<V8,\"No Aplica\",F60)","v":1000},{"$f":"IF(O13<V8,\"No Aplica\",(F60*$V$6))","v":4100},{"$f":"IF($O$13<V8,\"No Aplica\",G60)","v":2000},{"$f":"IF($O$13<V8,\"No Aplica\",(G60*$V$6))","v":8200},{"$f":"IF($O$13<V8,\"No Aplica\",H60)","v":3000},{"$f":"IF($O$13<V8,\"No Aplica\",(H60*$V$6))","v":12299.999999999998}]
[]
[null,null,"Claúsulas y Condiciones Especiales "]
[null,null," - Póliza de Seguro Domiciliario ",null,null,null,null,null,null," - 013 CL Pérdida de alimentos en equipos de refrigeración "]
[null,null," - 035 CL Robo de instalaciones fijas ",null,null,null,null,null,null," - 014 CL Gastos por emergencias médicas a terceros "]
[null,null," - 004 CL Muerte accidental del Ase. Cony. o Conv. ",null,null,null,null,null,null," - 015 CL Responsabilidad civil patronal (frente al trabajador del hogar) "]
[null,null," - 005 CL Gastos de curacion de empleados (trab. del hogar) ",null,null,null,null,null,null," - 016 CL Pérdida de equipaje por viaje dentro o fuera del país "]
[null,null," - 006 CL Daños internos de eq. electronicos y eq. electricos ",null,null,null,null,null,null," - 017 CL Deshonestidad o apropiación ilícita de trabajadores del hogar"]
[null,null," - 022 CL Robo de contenidos especiales dentro o fuera de los predios",null,null,null,null,null,null," - 019 CL Gastos de sepelio para el Asegurado o su conyuge o hijos "]
[null,null," - 008 CL Dinero en tránsito solo por asalto",null,null,null,null,null,null," - 020 CL Gastos de sepelio para el trabajador del hogar "]
[null,null," - 009 CL Dinero en efectivo dentro de la vivienda ",null,null,null,null,null,null," - 021 CL Responsabilidad civil por posesión de mascotas "]
[null,null," - 010 CL Asistencia médica urgente por lesiones en un robo",null,null,null,null,null,null," - 027 CL Gastos Extras"]
[null,null," - 011 CL Alojamiento temporal por inhabilitación de la vivienda ",null,null,null,null,null,null," - 038 CL Reemplazo"]
[null,null," - 012 CL Daños durante el traslado del contenido asegurado al alojamiento temporal ",null,null,null,null,null,null,{"$f":"IF(I13=AB3,\" - CE Valor Comercial\",\" \")","v":" - CE Valor Comercial"}]
[null,null,{"$f":"IF(D7=AC3,\" - Condiciones Especiales: Rehabilitacion Automática de la Suma Asegurada (excepto para coberturas con suma asegurada en agregado vigencia); Propiedades fuera de control del asegurado; Reposición; Errores y omisiones\",\" \")","v":" "}]
[null,null," - Las Sumas Aseguradas son límites únicos para la vigencia del seguro y se encuentran sujetas a los limites por evento y en agregado vigencia indicados en cada cobertura."]
[]
[null,null,"Recomendaciones "]
[null,null," - Tener instalados interruptores de tipo termomagnético o de tipo diferencial. No usar llaves de cuchilla ni conductores mellizos.\n - Mantener el cableado eléctrico entubado o empotrado, no debe existir presencia de cables sueltos.\n - Contar con un (01) extintor de PQS de 2 kgs o más de capacidad."]
[]
[null,null,"Beneficios "]
[null,null,"Linea Positiva Salud"]
[null,null," - Consejería médica gratuita vía telefónica "]
[null,null,"Asistencias Domiciliarias "]
[]
[null,null,"Asistencia",null,"Copago",null,null,null,"Sublimite *","Eventos "]
[null,null,"Cerrajeria ",null,"-",null,null,null,450,"3 eventos"]
[null,null,"Gasfiteria",null,"-",null,null,null,850,"3 eventos"]
[null,null,"Electricidad",null,"-",null,null,null,850,"2 eventos"]
[null,null,"Vidrieria ",null,"-",null,null,null,850,"2 eventos"]
[null,null,"Housekeeping",null,30,null,null,null,350,"2 eventos"]
[null,null,"Ambulancia por emergencia médica o accidental",null,"-",null,null,null,1500,"3 eventos"]
[null,null,"Consulta médica a domicilio",null,20,null,null,null,400,"3 eventos"]
[null,null,"Consulta médica por teléfono",null,"-",null,null,null,"Sin límite"]
[null,null,"Consulta médica para trabajadoras de hogar",null,30,null,null,null,400,"3 eventos"]
[null,null,"Mensajería en recojo y paquetes (hasta 5 kilos)",null,"-",null,null,null,600,"2 eventos"]
[null,null,"Valet Parking",null,"-",null,null,null,"Sin límite","2 eventos"]
[null,null,"Mozo a domicilio",null,"-",null,null,null,"1 mozo","2 eventos"]
[null,null,"Orientación Veterinaria Telefónica",null,"-",null,null,null,"Sin límite","-"]
[null,null,"Asesoría Legal",null,"-",null,null,null,"Sin límite","-"]
[null,null,"Servicios de referencia y coordinación",null,"-",null,null,null,"Sin límite","-"]
[null,null,"Mantenimiento de Preventivo de Línea Blanca",null,"-",null,null,null,250,"2 eventos"]
[null,null,"* El Sublimite señalado por cada asistencia corresponde al importe máximo del servicio brindado dentro de la vigencia de la póliza.\nLas asistencias están disponibles en algunas ciudades, sujetos al tipo de servicio requerido y al radio de acción. Se aplican restricciones por zona y horario. "]
[]
[null,null,"Exclusiones "]
[null,null," - Viviendas en cuyo interior se efectúen labores comerciales, industriales o de servicios"]
[null,null," - Viviendas ubicadas a una distancia menor a 500 metros del mar "]
[null,null," - Viviendas, casas y departamentos cuyo material de construcción predomínate NO sea ladrillo, cemento y fierro "]
[null,null," - Viviendas ubicadas en asentamientos informales o asentamientos humanos o en lotes no urbanizados o en lotes rurales o en condición de infravivienda"]
[]
[null,null,"Importante"]
[null,null," - El Asegurado deberá completar y firmar la Solicitud de Seguro"]
[]
[]
[]
[null,null,"TASA NETA ANUAL COBERTURA PRINCIPAL (Aplicado al Valor Declarado de Vivienda + Contenido asegurada)",null,null,null,null,null,1.65E-3,1.65E-3,1.65E-3]
[null,null,"TASA NETA ANUAL COB. ADICIONALES (Aplicado al Valor Declarado del contenido Asegurado",null,null,null,null,null,7.0000000000000001E-3,0.01,1.2E-2]
[null,null,null,null,null,null,null,null,"Dólares ( US$ )","Dólares ( US$ )","Dólares ( US$ )",null,"Sol ( S/ )","Sol ( S/ )","Sol ( S/ )"]
[null,null,"PRIMA NETA MINIMA POR PLAN",null,null,null,null,null,100,120,130,null,{"$f":"I118*$V$6","v":409.99999999999994},{"$f":"J118*$V$6","v":491.99999999999994},{"$f":"K118*$V$6","v":533}]
[null,null,"DERECHO DE EMISION MINIMO",null,null,null,null,null,5,{"$f":"I119","v":5},{"$f":"I119","v":5},null,18,{"$f":"M119","v":18},{"$f":"M119","v":18}]
[null,null,"PRIMA COMERCIAL + IGV MINIMA",null,null,null,null,null,{"$f":"(I118+I119)*1.18","v":123.89999999999999},{"$f":"(J118+J119)*1.18","v":147.5},159.29999999999998,null,{"$f":"(M118+M119)*1.18","v":505.03999999999991},{"$f":"(N118+N119)*1.18","v":601.79999999999995},{"$f":"(O118+O119)*1.18","v":650.17999999999995}]
[null,null,"PRIMA NETA COB PRINCIPAL EDIFICIO",null,null,null,null,null,{"$f":"I115*N13","v":247.5},{"$f":"J115*N13","v":247.5},{"$f":"K115*N13","v":247.5},null,{"$f":"I121","v":247.5},{"$f":"J121","v":247.5},247.5]
[null,null,"PRIMA NETA COB PRINCIPAL CONTENIDO",null,null,null,null,null,{"$f":"I115*O13","v":8.25},{"$f":"J115*O13","v":8.25},{"$f":"K115*O13","v":8.25},null,8.25,8.25,8.25]
[null,null,"PRIMA NETA COB ADICIONAL CONTENIDO",null,null,null,null,null,{"$f":"I116*O13","v":35},{"$f":"J116*O13","v":50},{"$f":"K116*O13","v":60},null,35,50,60]
[null,null,"PRIMA NETA APLICADA",null,null,null,null,null,{"$f":"IF(SUM(I121:I123)<I118,I118,SUM(I121:I123))","v":290.75},{"$f":"IF(SUM(J121:J123)<J118,J118,SUM(J121:J123))","v":305.75},{"$f":"IF(SUM(K121:K123)<K118,K118,SUM(K121:K123))","v":315.75},null,{"$f":"IF(SUM(M121:M123)<M118,M118,SUM(M121:M123))","v":409.99999999999994},{"$f":"IF(SUM(N121:N123)<N118,N118,SUM(N121:N123))","v":491.99999999999994},{"$f":"IF(SUM(O121:O123)<O118,O118,SUM(O121:O123))","v":533}]
[null,null,"DERECHO DE EMISION",null,0.03,null,null,null,{"$f":"I124*$E$125","v":8.7225000000000001},{"$f":"J124*$E$125","v":9.1724999999999994},9.4725000000000001,null,{"$f":"I125","v":8.7225000000000001},{"$f":"J125","v":9.1724999999999994},{"$f":"K125","v":9.4725000000000001}]
[null,null,"PRIMA COMERCIAL",null,null,null,null,null,{"$f":"I124+IF(I119<I125,I125,I119)","v":299.47250000000003},{"$f":"J124+IF(J119<J125,J125,J119)","v":314.92250000000001},{"$f":"K124+IF(K119<K125,K125,K119)","v":325.22250000000003},null,{"$f":"M124+IF(M119<M125,M125,M119)","v":427.99999999999994},{"$f":"N124+IF(N119<N125,N125,N119)","v":509.99999999999994},{"$f":"O124+IF(O119<O125,O125,O119)","v":551}]
[null,null,"PRIMA COMERCIAL + IGV",null,null,null,null,null,{"$f":"I126*1.18","v":353.37754999999999},{"$f":"J126*1.18","v":371.60854999999998},{"$f":"K126*1.18","v":383.76255000000003},null,{"$f":"M126*1.18","v":505.03999999999991},{"$f":"N126*1.18","v":601.79999999999995},650.17999999999995]
[null,null,"PRIMA COMERCIAL APLICADA",null,null,null,null,null,{"$f":"IF(N13>V8,I126,\"No Aplica\")","v":299.47250000000003},{"$f":"IF(AND(N13>V8,O13>V8),J126,\"No Aplica\")","v":314.92250000000001},{"$f":"IF(AND(N13>V8,O13>V8),K126,\"No Aplica\")","v":325.22250000000003},null,{"$f":"IF(N13>V8,M126,\"No Aplica\")","v":427.99999999999994},{"$f":"IF(AND(N13>V8,O13>V8),N126,\"No Aplica\")","v":509.99999999999994},{"$f":"IF(AND(N13>V8,O13>V8),O126,\"No Aplica\")","v":551}]
[]
[null,null,"DESCUENTO",0]
[null,null,null,0.05]
[null,null,null,0.1]
[null,null,null,0.15]
[null,null,null,0.2]

{"sheet":"CasaMAR","index":1,"n_rows":128,"n_cols":33,"rows_kept":128,"cut":false,"hidden":false,"merged":[[36,2,36,14],[41,2,42,6],[39,2,39,14],[40,2,40,3],[34,2,34,6],[24,2,24,6],[33,2,33,6],[31,2,31,6],[27,2,27,6],[26,2,26,6],[6,4,6,5],[6,6,6,14],[17,2,17,3],[16,2,16,3],[19,2,19,3],[18,2,18,3],[11,2,12,5],[1,2,1,14],[8,3,8,14],[23,2,23,14],[21,7,22,7],[5,12,5,14],[3,3,3,14],[4,3,4,14],[21,9,22,14],[10,2,10,14],[11,12,11,14],[11,11,12,11],[5,10,5,11],[7,13,7,14],[7,4,7,5],[5,3,5,5],[5,8,5,9],[41,9,41,14],[42,9,42,14],[11,8,12,8],[11,6,12,6],[11,10,12,10],[26,9,26,14],[35,2,35,6],[13,2,13,5],[11,9,12,9],[32,2,32,6],[41,7,42,7],[41,8,42,8],[37,2,37,5],[38,2,38,5],[25,2,25,6],[21,2,22,6],[101,2,101,14],[60,2,60,6],[51,7,52,7],[58,2,58,5],[56,2,56,5],[57,2,57,6],[55,2,55,6],[54,2,54,6],[53,2,53,6],[51,2,52,6],[74,2,74,14],[64,2,64,14],[76,2,76,14],[77,2,77,14],[59,2,59,6],[79,2,79,14],[156,2,156,3],[157,2,157,3],[153,2,153,3],[154,2,154,3],[103,2,103,3],[155,2,155,3],[61,2,61,5],[62,2,62,5],[43,2,43,5],[45,2,45,5],[46,2,46,5],[50,2,50,6],[44,2,44,6],[48,2,48,6],[49,2,49,6],[47,2,47,6]]}
[]
[null,null,"COTIZACIÓN DE SEGURO DOMICILIARIO CASAMARV7.1"]
[null,null,null,null,null,null,null,null,null,null,null,null,null,null,null,null,null,null,null,"SI","Dólares ( US$ )","US$","A. Programa Básico",null,null,null,"Concreto Armado","Departamento"]
[null,null,"CONTRATANTE",null,null,null,null,null,null,null,null,null,null,null,null,null,null,null,null,"NO","Sol ( S/ )","S/","B. Programa Básico + Programa Full",null,null,null,"Ladrillo y Cemento","Casa",null,"Debe asegurar edificio",null,"SA Edificio minimo ",200]
[null,null,"ASEGURADO",null,null,null,null,null,null,null,null,null,null,null,null,null,null,null,null,null,null,null,null,null,null,null,"Estructura de Acero",null,null,"La cotización excede el limite permitido"]
[null,null,"CORREDOR",null,null,null,"Oficina ",null,null,null,"Ejecutivo Comercial ",null,null,null,null,null,null,null,null,null,"Tipo de Cambio",{"$f":"CasaPLUS!V6","v":4.0999999999999996},null,null,null,null,"Madera y/o Adobe y/o quincha",null,null,"Debe asegurar contenido",null,"SA contenido minimo ",999]
[null,null,"ENDOSATARIO","SI","Nombre del Endosatario",null,null,null,null,null,null,null,null,null,null,null,null,null,null,null,{"$f":"CasaPLUS!U10","v":"limite SA"},{"$f":"CasaPLUS!V10","v":1500000}]
[null,null,"MONEDA","Dólares ( US$ )","Fecha de Cotización",null,{"$f":"TODAY()","v":"2021-08-17"},null,"Validez de la cotización ",null,"15 días ","Vigencia del seguro",null,"1 Año "]
[null,null,"COBERTURAS SOLICITADAS","B. Programa Básico + Programa Full"]
[null,null,null,null,null,null,null,null,null,null,null,null,null,null,null,null,null,null,null,"https://exceltotal.com/ocultar-datos-en-excel-con-formato-condicional/"]
[null,null,"DATOS SBS"]
[null,null,"Ubicación del riesgo",null,null,null,"Tipo de Vivienda ",null,"Tipo de Estructura","Año de Construcción","Nro. de \nPisos","Nro. de Sótanos","Valores Declarados",null,null,null,null,null,null,"http://www.compartir-tecnologias.es/ocultar-mostrar-filas-autoamticamente-pro-medio-formula-o-funcion-ayuda-204308052.html"]
[null,null,null,null,null,null,null,null,null,null,null,null,"Edificio","Contenido","Total",null,null,null,null,null,"pr"]
[null,null,null,null,null,null,null,null,null,null,null,null,90000,5000,{"$f":"SUM(M14:N14)","v":95000}]
[null,null,null,{"$f":"+IF(D9=W3,1,0)","v":0}]
[null,null,null,null,"Moneda","Prima",{"$f":"IF(OR(G17=AD4,G18=AD5),\"Observaciones\",\" \")","v":" "},null,null,null,null,{"$f":"IF(E19>10%,\"Ver con Area Técnica LP\",\" \")","v":" "}]
[null,null,"Prima Comercial",null,{"$f":"IF($D$8=\"Dólares ( US$ )\",\"US$\",\"S/\")","v":"US$"},{"$f":"IF(D8=U3,K127,L127)","v":227.11500000000001},{"$f":"IF(M14<AG4,AD4,\" \")","v":" "}]
[null,null,"Prima Comercial + IGV Anual",null,{"$f":"IF($D$8=\"Dólares ( US$ )\",\"US$\",\"S/\")","v":"US$"},{"$f":"IFERROR(F17*1.18,\"No Aplica\")","v":267.9957},{"$f":"IF(AND(D8=U3,K126=\"SI\"),AD5,(IF(AND(D8=U4,L126=\"SI\"),AD5,\" \")))","v":" "}]
[null,null,"Descuento",null,0,null,{"$f":"IF(N14<AG6,AD6,\" \")","v":" "}]
[null,null,"Prima Comercial + IGV Anual",null,{"$f":"IF($D$8=\"Dólares ( US$ )\",\"US$\",\"S/\")","v":"US$"},{"$f":"IFERROR(F18*(1-E19),\"No Aplica\")","v":267.9957}]
[]
[null,null,"Coberturas Principales",null,null,null,null,"Suma Asegurada Maxima ","Suma Asegurada","Deducibles"]
[null,null,null,null,null,null,null,null,{"$f":"+D8","v":"Dólares ( US$ )"},null,null,null,null,null,null,null,null,null,"SA Dolares","SA Soles "]
[null,null,"I. PROGRAMA BASICO"]
[null,null,"Este seguro cubre la destrucción o daño físico directo de la vivienda y su contenido como consecuencia directa de",null,null,null,null,null,null,null,null,null,null,null,null,null,null,null,null,null,"prima comercial minima"]
[null,null,"Incendio y/o rayo, explosión, daños por agua, lluvia e inundación,  caída de aeronaves, impacto de vehículos terrestres, daños por humo.",null,null,null,null,"Hasta el 100% de la Suma Asegurada (SA) de la Vivienda\n+ Contenido",{"$f":"+O14","v":95000},{"$f":"Hoja1!B30","v":"10% del Monto Indemnizable mínimo US$ 500"},null,null,null,null,null,null,null,null,{"$f":"K123*1.18","v":123.89999999999999},{"$f":"L123*1.18","v":505.03999999999991},"prima comercial + IGV minima"]
[null,null,"Terremoto, temblor, erupción volcánica, maremoto (Tsunami), salida de mar, marejada, oleaje.",null,null,null,null,null,{"$f":"I26","v":95000},{"$f":"Hoja1!B31","v":"1% de la Suma Asegurada de la Vivienda + Contenido, minimo US$ 2000,lo que resulte mayor"}]
[null,null,"Huelga y conmoción civil, daño malicioso, vandalismo y/o terrorismo, limite agregado vigencia hasta:",null,null,null,null,null,{"$f":"I27","v":95000},{"$f":"Hoja1!B32","v":"5% del monto indemnizable mínimo US$ 500"}]
[]
[]
[]
[null,null,"Rotura de vidrios, espejos y unidades sanitarias, hasta el 10% de la Suma Asegurada de la Vivienda, máximo:",null,null,null,null,15000,{"$f":"IF($D$8=\"Dólares ( US$ )\",S32,T32)","v":9000},{"$f":"Hoja1!B36","v":"10% del Monto Indemnizable, mínimo US$ 30"},null,null,null,null,null,null,null,null,{"$f":"IF(M14*0.1<H32,M14*0.1,H32)","v":9000},{"$f":"IF(M14*0.1<H32*$V$6,M14*0.1,H32*$V$6)","v":9000}]
[null,null,"Gastos Extras, hasta el 20% de la Suma Asegurada de la Vivienda + Contenido, máximo:",null,null,null,null,30000,{"$f":"IF($D$8=\"Dólares ( US$ )\",S33,T33)","v":9500},"El de la cobertura afectada",null,null,null,null,null,null,null,null,{"$f":"IF(O14*0.1<H33,O14*0.1,H33)","v":9500},{"$f":"IF(O14*0.1<H33*$V$6,O14*0.1,H33*$V$6)","v":9500}]
[null,null,"Gastos de remoción de escombros, hasta el 10% de la Suma Asegurada de la Vivienda + Contenido, máximo:",null,null,null,null,30000,{"$f":"IF($D$8=\"Dólares ( US$ )\",S34,T34)","v":9500},{"$f":"Hoja1!B37","v":"Sin Deducible  "},null,null,null,null,null,null,null,null,{"$f":"IF(O14*0.1<H34,O14*0.1,H34)","v":9500},{"$f":"IF(O14*0.1<H34*$V$6,O14*0.1,H34*$V$6)","v":9500}]
[null,null,"Gastos de extinción y contención del siniestro, hasta el 10% de la Suma Asegurada de la Vivienda + Contenido, máximo:",null,null,null,null,30000,{"$f":"IF($D$8=\"Dólares ( US$ )\",S35,T35)","v":9500},{"$f":"Hoja1!B38","v":"Sin Deducible  "},null,null,null,null,null,null,null,null,{"$f":"IF(O14*0.1<H35,O14*0.1,H35)","v":9500},{"$f":"IF(O14*0.1<H35*$V$6,O14*0.1,H35*$V$6)","v":9500}]
[null,null,"Responsabilidad civil Extracontractual Frente a Terceros limite en agregado vigencia, hasta:",null,null,null,null,100000,{"$f":"IF(I48=0,0,IF($D$8=\"Dólares ( US$ )\",S36,T36))","v":100000},{"$f":"Hoja1!B41","v":" US$ 200"},null,null,null,null,null,null,null,null,{"$f":"+H36","v":100000},{"$f":"+H36*V6","v":409999.99999999994}]
[null,null,"Coberturas Adicionales "]
[null,null,"Responsabilidad Civil"]
[null,null,"1.2.4 - Responsabilidad Civil por los daños personales que ocasione la posesión de mascotas, hasta:",null,null,null,null,30000,{"$f":"IF($D$8=\"Dólares ( US$ )\",S39,T39)","v":30000},"Sin Deducible",null,null,null,null,null,null,null,null,{"$f":"+H39","v":30000},{"$f":"+H39*V6","v":122999.99999999999}]
[null,null,"II. PROGRAMA FULL"]
[null,null,"Robo"]
[null,null,"Robo de Bienes Contenidos en la Vivienda hasta ",null,null,null,null,"Hasta el 100% de la Suma Asegurada del Contenido",{"$f":"IF($N$14<1,\"No Aplica\",N14)","v":5000},{"$f":"IF(I42=\"No Aplica\", \"No Aplica\",Hoja1!B47)","v":"Eventos ocurridos entre Diciembre y Abril: 10% del Monto Indemnizable, mínimo  US$ 500"}]
[null,null,null,null,null,null,null,null,null,{"$f":"IF(I42=\"No Aplica\",\" \",Hoja1!B48)","v":"Eventos ocurridos entre Mayo a Noviembre: 10% del Monto Indemnizable, mínimo  US$ 2500"}]
[null,null,"2.1.2 Contenidos Especiales (joyas, alhajas, perlas, platería, relojes personales, obras de arte, pieles, instrumentos musicales y colecciones en general) que se encuentren dentro de la vivienda y con un límite por bien de US$1,000. La Suma Asegurada está limitada al 30% de la suma asegurada del Contenido, máximo:",null,null,null,null,15000,{"$f":"IF($D$8=\"Dólares ( US$ )\",S44,T44)","v":1500},"10% del Monto Indemnizable, mínimo",null,null,null,{"$f":"IF($D$8=\"Dólares ( US$ )\",\"US$\",\"S/\")","v":"US$"},{"$f":"IF($D$8=\"Dólares ( US$ )\",U44,(U44*$V$6))","v":0},null,null,null,{"$f":"IF(N14*0.3<H44,N14*0.3,H44)","v":1500},{"$f":"IF(N14*0.3<H44*$V$6,N14*0.3,H44*$V$6)","v":1500}]
[null,null,"Robo de Dinero en efectivo dentro de la vivienda, hasta US$ 1,000 por evento y en agregado vigencia máximo:",null,null,null,null,3000,{"$f":"IF($D$8=\"Dólares ( US$ )\",S45,T45)","v":3000},{"$f":"IF(I45=\"No Aplica\",\"No Aplica\",Hoja1!B50)","v":" US$ 50"},null,null,null,null,null,null,null,null,{"$f":"IF($N$14<1,\"No Aplica\",H45)","v":3000},{"$f":"IF($N$14<1,\"No Aplica\",H45*$V$6)","v":12299.999999999998}]
[null,null,"2.1.4 - Dinero en Tránsito solo por Asalto, maximo",null,null,null,null,2000,{"$f":"IF($D$8=\"Dólares ( US$ )\",S46,T46)","v":2000},"Sin Deducible",null,null,null,null,null,null,null,null,{"$f":"IF(N14=0,0,H46)","v":2000},{"$f":"IF(N14=0,0,H46*$V$6)","v":8200}]
[null,null,"Especiales"]
[null,null,"Robo de Instalaciones fijas, hasta el 20% de la Suma Asegurada de la Vivienda máximo",null,null,null,null,10000,{"$f":"IF($D$8=\"Dólares ( US$ )\",S48,T48)","v":10000},{"$f":"Hoja1!B39","v":"15% del Monto Indemnizable, mínimo US$ 200"},null,null,null,null,null,null,null,null,{"$f":"IF(M14*0.2<H48,M14*0.2,H48)","v":10000},{"$f":"IF(M14*0.2<H48*$V$6,M14*0.2,H48*$V$6)","v":18000}]
[null,null,"Responsabilidad Civil Patronal (frente al trabajador del hogar), por evento y en el agregado vigencia hasta:",null,null,null,null,20000,{"$f":"IF(I48=0,0,IF($D$8=\"Dólares ( US$ )\",S49,T49))","v":20000},{"$f":"Hoja1!B43","v":"Sin Deducible  "},null,null,null,null,null,null,null,null,{"$f":"+H49","v":20000},{"$f":"+H49*V6","v":82000}]
[null,null,"Gastos por emergencias médicas de terceros, hasta US$ 1,000 por persona, y en agregado vigencia máximo:",null,null,null,null,3000,{"$f":"IF(I48=0,0,IF($D$8=\"Dólares ( US$ )\",S50,T50))","v":3000},{"$f":"Hoja1!B42","v":"Sin Deducible  "},null,null,null,null,null,null,null,null,{"$f":"+H50","v":3000},{"$f":"+H50*V6","v":12299.999999999998}]
[null,null,"Daños internos de equipos electrónicos y equipos eléctricos, hasta el 10% de la Suma Asegurada del Contenido, máximo:",null,null,null,null,5000,{"$f":"IF($D$8=\"Dólares ( US$ )\",S51,T51)","v":500},{"$f":"IF(I51=\"No Aplica\",\"No Aplica\",Hoja1!B53)","v":"10% del Monto Indemnizable, mínimo US$ 50"},null,null,null,null,null,null,null,null,{"$f":"IF($N$14<1,\"No Aplica\",IF(N14*0.1<H51,N14*0.1,H51))","v":500},{"$f":"IF($N$14<1,\"No Aplica\",IF(N14*0.1<H51*$V$6,N14*0.1,H51*$V$6))","v":500}]
[null,null,"Asistencia médica urgente por lesiones en un robo con un límite por persona de US$1,000 y en la vigencia hasta:",null,null,null,null,5000]
[null,null,null,null,null,null,null,null,{"$f":"IF($D$8=\"Dólares ( US$ )\",S53,T53)","v":5000},{"$f":"IF(I53=\"No Aplica\",\"No Aplica\",Hoja1!B54)","v":"Sin Deducible  "},null,null,null,null,null,null,null,null,{"$f":"IF($N$14<1,\"No Aplica\",H52)","v":5000},{"$f":"IF($N$14<1,\"No Aplica\",H52*$V$6)","v":20500}]
[null,null,"Alojamiento temporal por inhabilitación de la vivienda, con un límite mensual de  US$ 1,000 y en la vigencia hasta: ",null,null,null,null,3000,{"$f":"IF(I48=0,0,IF($D$8=\"Dólares ( US$ )\",S54,T54))","v":3000},{"$f":"IF(I54=\"No Aplica\",\"No Aplica\",Hoja1!B56)","v":"Sin Deducible  "},null,null,null,null,null,null,null,null,{"$f":"IF($N$14<1,\"No Aplica\",H54)","v":3000},{"$f":"IF($N$14<1,\"No Aplica\",H54*$V$6)","v":12299.999999999998}]
[null,null,"Daños durante el traslado del contenido asegurado al alojamiento temporal, hasta el 50% de la Suma Asegurada del Contenido, máximo:",null,null,null,null,7500,{"$f":"IF($D$8=\"Dólares ( US$ )\",S55,T55)","v":2500},{"$f":"IF(I55=\"No Aplica\",\"No Aplica\",Hoja1!B57)","v":"10% del Monto Indemnizable, mínimo US$ 50"},null,null,null,null,null,null,null,null,{"$f":"IF($N$14<1,\"No Aplica\",IF(N14*0.5<H55,N14*0.5,H55))","v":2500},{"$f":"IF($N$14<1,\"No Aplica\",IF(N14*0.5<H55*$V$6,N14*0.5,H55*$V$6))","v":2500}]
[null,null,"Perdida de alimentos en equipos de refrigeración, hasta el 5% de la Suma Asegurada del Contenido, máximo:",null,null,null,null,1500,{"$f":"IF($D$8=\"Dólares ( US$ )\",S56,T56)","v":250},{"$f":"IF(I56=\"No Aplica\",\"No Aplica\",Hoja1!B58)","v":"10% del Monto Indemnizable, mínimo US$ 50"},null,null,null,null,null,null,null,null,{"$f":"IF($N$14<1,\"No Aplica\",IF(N14*0.05<H56,N14*0.05,H56))","v":250},{"$f":"IF($N$14<1,\"No Aplica\",IF(N14*0.05<H56*$V$6,N14*0.05,H56*$V$6))","v":250}]
[null,null,"2.2.6 Pérdida de equipaje y/o de los bienes portados por el Asegurado y/o cónyuge y/o hijos en caso de viaje dentro o fuera del país, hasta el 10% de la Suma Asegurada del Contenido, máximo:",null,null,null,null,5000,{"$f":"IF($D$8=\"Dólares ( US$ )\",S57,T57)","v":500},"Sin Deducible",null,null,null,null,null,null,null,null,{"$f":"IF(N14*0.1<H57,N14*0.1,H57)","v":500},{"$f":"IF(N14*0.1<H57*$V$6,N14*0.1,H57*$V$6)","v":500}]
[null,null,"Deshonestidad o apropiación ilícita de trabajadores del hogar, limite en agregado vigencia hasta:",null,null,null,null,1500,{"$f":"IF($D$8=\"Dólares ( US$ )\",S58,T58)","v":1500},{"$f":"IF(I58=\"No Aplica\",\"No Aplica\",Hoja1!B60)","v":"10% del Monto Indemnizable, mínimo US$ 200"},null,null,null,null,null,null,null,null,{"$f":"IF($N$14<1,\"No Aplica\",H58)","v":1500},{"$f":"IF($N$14<1,\"No Aplica\",(H58*$V$6))","v":6149.9999999999991}]
[null,null,"Accidentes Personales "]
[null,null,"Compensación por Muerte accidental del Asegurado o de su cónyuge o conviviente ",null,null,null,null,10000,{"$f":"IF($D$8=\"Dólares ( US$ )\",S60,T60)","v":10000},{"$f":"IF(I60=\"No Aplica\",\"No Aplica\",Hoja1!B62)","v":"Sin Deducible  "},null,null,null,null,null,null,null,null,{"$f":"IF($N$14<1,\"No Aplica\",H60)","v":10000},{"$f":"IF($N$14<1,\"No Aplica\",(H60*$V$6))","v":41000}]
[null,null,"Gastos de Curación de empleados (Trabajadores del hogar), hasta US$ 1,000 por evento, maximo:",null,null,null,null,3000,{"$f":"IF($D$8=\"Dólares ( US$ )\",S61,T61)","v":3000},{"$f":"IF(I61=\"No Aplica\",\"No Aplica\",Hoja1!B63)","v":"Sin Deducible  "},null,null,null,null,null,null,null,null,{"$f":"IF($N$14<1,\"No Aplica\",H61)","v":3000},{"$f":"IF($N$14<1,\"No Aplica\",(H61*$V$6))","v":12299.999999999998}]
[null,null,"2.3.3 Gastos de Sepelio del Asegurado y/o conyuge y/o hijos",null,null,null,null,3000,{"$f":"IF($D$8=\"Dólares ( US$ )\",S62,T62)","v":3000},"Sin Deducible",null,null,null,null,null,null,null,null,{"$f":"IF(N14=0,0,H62)","v":3000},{"$f":"IF(N14=0,0,(H62*$V$6))","v":12299.999999999998}]
[null,null,"2.3.4 Gastos de Sepelio por muerte del trabajador del hogar",null,null,null,null,3000,{"$f":"IF($D$8=\"Dólares ( US$ )\",S63,T63)","v":3000},"Sin Deducible",null,null,null,null,null,null,null,null,{"$f":"IF(N14=0,0,H63)","v":3000},{"$f":"IF(N14=0,0,(H63*$V$6))","v":12299.999999999998}]
[]
[null,null,"Claúsulas y Condiciones Especiales "]
[null,null," - POLIZA DE SEGURO DOMICILIARIO",null,null,null,null,null,null," - 011 CL Alojamiento temporal por inhabilitación de la vivienda "]
[null,null," - 015 CL Responsabilidad civil patronal (frente al trabajador del hogar) ",null,null,null,null,null,null," - 010 CL Asistencia médica urgente por lesiones en un robo"]
[null,null," - 012 CL Daños durante el traslado del contenido asegurado al alojamiento temporal ",null,null,null,null,null,null," - 006 CL Daños internos de eq. electronicos y eq. electricos "]
[null,null," - 017 CL Deshonestidad o apropiación ilícita de trabajadores del hogar",null,null,null,null,null,null," - 004 CL Muerte accidental del Ase. Cony. o Conv. "]
[null,null," - 035 CL Robo de instalaciones fijas ",null,null,null,null,null,null," - 009 CL Dinero en efectivo dentro de la vivienda "]
[null,null," - 013 CL Pérdida de alimentos en equipos de refrigeración ",null,null,null,null,null,null," - 014 CL Gastos por emergencias médicas a terceros "]
[null,null," - 005 CL Gastos de curacion de empleados (trab. del hogar) ",null,null,null,null,null,null," - 027 CL Gastos Extras"]
[null,null,{"$f":"IF(G14=AB3,\" - CE Valor Comercial\",\" \")","v":" "}]
[null,null," - Las Sumas Aseguradas son límites únicos para la vigencia del seguro y se encuentran sujetas a los limites por evento y agregado vigencia indicados en cada cobertura."]
[null,null,{"$f":"IF(D7=T3,\" - Condiciones Especiales: Rehabilitacion Automática de la Suma Asegurada (excepto para coberturas con suma asegurada en agregado vigencia); Propiedades fuera de control del asegurado; Reposición; Errores y omisiones\",\" \")","v":" - Condiciones Especiales: Rehabilitacion Automática de la Suma Asegurada (excepto para coberturas con suma asegurada en agregado vigencia); Propiedades fuera de control del asegurado; Reposición; Errores y omisiones"}]
[]
[null,null,"Recomendaciones "]
[null,null," - Tener instalados interruptores de tipo termomagnético o de tipo diferencial. No usar llaves de cuchilla ni conductores mellizos.\n - Mantener el cableado eléctrico entubado o empotrado, no debe existir presencia de cables sueltos.\n - Contar con un (01) extintor de PQS de 2 kgs o más de capacidad."]
[]
[null,null,"Beneficios "]
[null,null,"Linea Positiva Salud"]
[null,null," - Consejería médica gratuita vía telefónica "]
[null,null,"Asistencias Domiciliarias "]
[]
[null,null,"Asistencia",null,"Copago","Sublimite *","Eventos ",{"$f":"CasaPLUS!I85","v":"Sublimite *"}]
[null,null,"Cerrajeria ",null,"-",450,"3 eventos",{"$f":"CasaPLUS!I86","v":450}]
[null,null,"Gasfiteria",null,"-",850,"3 eventos",{"$f":"CasaPLUS!I87","v":850}]
[null,null,"Electricidad",null,"-",850,"2 eventos",{"$f":"CasaPLUS!I88","v":850}]
[null,null,"Vidrieria ",null,"-",850,"2 eventos",{"$f":"CasaPLUS!I89","v":850}]
[null,null,"Housekeeping",null,30,350,"2 eventos",{"$f":"CasaPLUS!I90","v":350}]
[null,null,"Ambulancia por emergencia médica o accidental",null,"-",1500,"3 eventos",{"$f":"CasaPLUS!I91","v":1500}]
[null,null,"Consulta médica a domicilio",null,20,400,"3 eventos",{"$f":"CasaPLUS!I92","v":400}]
[null,null,"Consulta médica por teléfono",null,"-","Sin límite",null,{"$f":"CasaPLUS!I93","v":"Sin límite"}]
[null,null,"Consulta médica para trabajadoras de hogar",null,30,400,"3 eventos",{"$f":"CasaPLUS!I94","v":400}]
[null,null,"Mensajería en recojo y paquetes (hasta 5 kilos)",null,"-",600,"2 eventos",{"$f":"CasaPLUS!I95","v":600}]
[null,null,"Valet Parking",null,"-","Sin límite","2 eventos",{"$f":"CasaPLUS!I96","v":"Sin límite"}]
[null,null,"Mozo a domicilio",null,"-","1 mozo","2 eventos",{"$f":"CasaPLUS!I97","v":"1 mozo"}]
[null,null,"Orientación Veterinaria Telefónica",null,"-","Sin límite","-",{"$f":"CasaPLUS!I98","v":"Sin límite"}]
[null,null,"Asesoría Legal",null,"-","Sin límite","-",{"$f":"CasaPLUS!I99","v":"Sin límite"}]
[null,null,"Servicios de referencia y coordinación",null,"-","Sin límite","-",{"$f":"CasaPLUS!I100","v":"Sin límite"}]
[null,null,"Mantenimiento de Preventivo de Línea Blanca",null,"-",250,"2 eventos",{"$f":"CasaPLUS!I101","v":250}]
[null,null,{"$f":"CasaPLUS!C102","v":"* El Sublimite señalado por cada asistencia corresponde al importe máximo del servicio brindado dentro de la vigencia de la póliza.\nLas asistencias están disponibles en algunas ciudades, sujetos al tipo de servicio requerido y al radio de acción. Se aplican restricciones por zona y horario. "}]
[]
[]
[]
[null,null,"Exclusiones "]
[null,null," - Viviendas en cuyo interior se efectúen labores comerciales, industriales o de servicios"]
[null,null," - Viviendas ubicadas a una distancia menor a 100 metros del mar "]
[null,null," - Viviendas, casas y departamentos cuyo material de construcción predomínate NO sea ladrillo, cemento y fierro "]
[null,null," - Viviendas ubicadas en asentamientos informales o asentamientos humanos o en lotes no urbanizados o en lotes rurales o en condición de infravivienda"]
[]
[]
[null,null,"Importante"]
[null,null," - El Asegurado deberá completar y firmar la Solicitud de Seguro"]
[]
[null,null,null,null,null,null,null,null,null,null,"Dolares","Soles"]
[null,null,"TASA NETA ANUAL COBERTURA PRINCIPAL (aplicado al VD de Vivienda + Contenido asegurada)",null,null,null,null,null,null,1.9,{"$f":"J117*O14/1000","v":180.5},{"$f":"J117*O14/1000","v":180.5}]
[null,null,"TASA NETA ANUAL COB ADICIONALES (Aplicado al VD del contenido Asegurado",null,null,null,null,null,null,8,{"$f":"N14*J118/1000","v":40},{"$f":"N14*J118/1000","v":40}]
[null,null,"PRIMA NETA",null,null,null,null,null,null,null,{"$f":"SUM(K117:K118)","v":220.5},{"$f":"SUM(L117:L118)","v":220.5}]
[null,null,"DERECHO DE EMISION %",null,null,null,null,null,null,0.03,{"$f":"K119*J120","v":6.6149999999999993},{"$f":"L119*J120","v":6.6149999999999993}]
[null,null,"DERECHO DE EMISION MINIMO ",null,null,null,null,null,null,null,5,18]
[null,null,"PRIMA COMERCIAL APLICADA",null,null,null,null,null,null,null,{"$f":"IF(K120>K121,K119+K120,K119+K121)","v":227.11500000000001},{"$f":"IF(L120>L121,L119+L120,L119+L121)","v":238.5}]
[null,null,"PRIMA COMERCIAL MINIMA CASAMAR",null,null,null,null,null,null,null,{"$f":"100+K121","v":105},{"$f":"(100*V6)+L121","v":427.99999999999994}]
[null,null,"¿ASEGURA EDIFICIO?",null,null,null,null,null,null,null,{"$f":"IF(M14<AG4,\"NO\",\"SI\")","v":"SI"},{"$f":"K124","v":"SI"}]
[null,null,"¿ASEGURA CONTENIDO?",null,null,null,null,null,null,null,{"$f":"IF(N14>999,\"SI\",\"NO\")","v":"SI"},{"$f":"K125","v":"SI"}]
[null,null,"¿EXCEDE LIMITE ASEGURADO?",null,null,null,null,null,null,null,{"$f":"IF(O14>V7,\"SI\",\"NO\")","v":"NO"},{"$f":"IF(O14>V7*V6,\"SI\",\"NO\")","v":"NO"}]
[null,null,"PRIMA COMERCIAL VALIDADA",null,null,null,null,null,null,null,{"$f":"IF(OR(K124=\"NO\",K125=\"NO\",K126=\"SI\"),\"No aplica\",IF(K122>K123,K122,K123))","v":227.11500000000001},{"$f":"IF(OR(L124=\"NO\",L125=\"NO\",L126=\"SI\"),\"No aplica\",IF(L122>L123,L122,L123))","v":427.99999999999994}]
[null,null,"PRIMA COMERCIAL + IGV",null,null,null,null,null,null,null,{"$f":"IFERROR(K127*1.18,\"No aplica\")","v":267.9957},{"$f":"IFERROR(L127*1.18,\"No aplica\")","v":505.03999999999991}]

{"sheet":"Hoja1","index":2,"n_rows":65,"n_cols":8,"rows_kept":65,"cut":false,"hidden":true,"merged":[]}
[]
[]
["DEDUCIBLES CP",null,null,"Moneda","Minimo "]
[{"$f":"CasaPLUS!C27","v":"Incendio y/o rayo, explosión, daños por agua, lluvia e inundación,  caída de aeronaves, impacto de vehículos terrestres, daños por humo."},{"$f":"CONCATENATE(Hoja1!C4,\" \",Hoja1!D4,\" \",Hoja1!E4, ,Hoja1!F4)","v":"10% del Monto Indemnizable mínimo US$ 200"},"10% del Monto Indemnizable mínimo",{"$f":"IF(CasaPLUS!D8=CasaPLUS!U3,CasaPLUS!V3,CasaPLUS!V4)","v":"US$"},{"$f":"IF(D4=CasaPLUS!V3,Hoja1!H4,Hoja1!H4*CasaPLUS!V6)","v":200},null,null,200]
[{"$f":"CasaPLUS!C28","v":"Terremoto, temblor, erupción volcánica, maremoto (Tsunami), salida de mar, marejada, oleaje."},{"$f":"CONCATENATE(Hoja1!C5,\" \",Hoja1!D5,\" \",Hoja1!E5, ,Hoja1!F5)","v":"1% de la Suma Asegurada de la Vivienda + Contenido, minimo US$ 500,lo que resulte mayor"},"1% de la Suma Asegurada de la Vivienda + Contenido, minimo",{"$f":"D4","v":"US$"},{"$f":"IF(D5=CasaPLUS!V3,Hoja1!H5,Hoja1!H5*CasaPLUS!V6)","v":500},",lo que resulte mayor",null,500]
[{"$f":"CasaPLUS!C29","v":"Huelga y conmoción civil, daño malicioso, vandalismo y/o terrorismo, limite agregado vigencia hasta."},{"$f":"CONCATENATE(Hoja1!C6,\" \",Hoja1!D6,\" \",Hoja1!E6, ,Hoja1!F6)","v":"5% del monto indemnizable mínimo US$ 200"},"5% del monto indemnizable mínimo",{"$f":"D4","v":"US$"},{"$f":"IF(D6=CasaPLUS!V3,Hoja1!H6,Hoja1!H6*CasaPLUS!V6)","v":200},null,null,200]
[{"$f":"CasaPLUS!C35","v":"Rotura de vidrios, espejos y unidades sanitarias, hasta el 20% de la Suma Asegurada de la Vivienda, máximo: "},{"$f":"CONCATENATE(Hoja1!C7,\" \",Hoja1!D7,\" \",Hoja1!E7, ,Hoja1!F7)","v":"10% del Monto Indemnizable, mínimo US$ 30"},"10% del Monto Indemnizable, mínimo",{"$f":"D4","v":"US$"},{"$f":"IF(D7=CasaPLUS!V3,Hoja1!H7,Hoja1!H7*CasaPLUS!V6)","v":30},null,null,30]
[{"$f":"CasaPLUS!C39","v":"Robo de instalaciones fijas, hasta el 20% de la Suma Asegurada de la Vivienda, máximo:"},{"$f":"CONCATENATE(Hoja1!C8,\" \",Hoja1!D8,\" \",Hoja1!E8, ,Hoja1!F8)","v":"15% del Monto Indemnizable, mínimo US$ 200"},"15% del Monto Indemnizable, mínimo",{"$f":"D4","v":"US$"},{"$f":"IF(D8=CasaPLUS!V3,Hoja1!H8,Hoja1!H8*CasaPLUS!V6)","v":200},null,null,200]
[{"$f":"CasaPLUS!C33","v":"Responsabilidad Civil Extracontractual Frente a Terceros, por evento y en agregado vigencia hasta:"},{"$f":"CONCATENATE(Hoja1!C9,\" \",Hoja1!D9,\" \",Hoja1!E9, ,Hoja1!F9)","v":" US$ 200"},null,{"$f":"D6","v":"US$"},{"$f":"IF(D9=CasaPLUS!V3,Hoja1!H9,Hoja1!H9*CasaPLUS!V6)","v":200},null,null,200]
[{"$f":"CasaPLUS!C44","v":"Robo de Bienes Contenidos en la Vivienda hasta:"},{"$f":"CONCATENATE(Hoja1!C10,\" \",Hoja1!D10,\" \",Hoja1!E10, ,Hoja1!F10)","v":"15% del Monto Indemnizable, mínimo US$ 500"},"15% del Monto Indemnizable, mínimo",{"$f":"D5","v":"US$"},{"$f":"IF(D10=CasaPLUS!V3,Hoja1!H10,Hoja1!H10*CasaPLUS!V6)","v":500},null,null,500]
[{"$f":"CasaPLUS!C46","v":"Robo de Contenidos Especiales (joyas, alhajas, perlas, platería, relojes personales, obras de arte, pieles, instrumentos musicales y colecciones en general) dentro o fuera de los predios, con un límite por bien de US$1,000. La Suma Asegurada está limitada al 30% de la suma asegurada del Contenido, hasta: "},{"$f":"CONCATENATE(Hoja1!C11,\" \",Hoja1!D11,\" \",Hoja1!E11, ,Hoja1!F11)","v":"15% del Monto Indemnizable, mínimo US$ 300"},"15% del Monto Indemnizable, mínimo",{"$f":"D7","v":"US$"},{"$f":"IF(D11=CasaPLUS!V3,Hoja1!H11,Hoja1!H11*CasaPLUS!V6)","v":300},null,null,300]
[{"$f":"CasaPLUS!C47","v":"Robo de dinero en Efectivo dentro de la Vivienda, hasta:"},{"$f":"CONCATENATE(Hoja1!C12,\" \",Hoja1!D12,\" \",Hoja1!E12, ,Hoja1!F12)","v":" US$ 50"},null,{"$f":"D8","v":"US$"},{"$f":"IF(D12=CasaPLUS!V3,Hoja1!H12,Hoja1!H12*CasaPLUS!V6)","v":50},null,null,50]
[{"$f":"CasaPLUS!C48","v":"Robo de dinero en tránsito solo por asalto, hasta:"},{"$f":"CONCATENATE(Hoja1!C13,\" \",Hoja1!D13,\" \",Hoja1!E13, ,Hoja1!F13)","v":" US$ 50"},null,"US$",{"$f":"IF(D13=CasaPLUS!V3,Hoja1!H13,Hoja1!H13*CasaPLUS!V6)","v":50},null,null,50]
[{"$f":"CasaPLUS!C49","v":"Daños internos de equipos electrónicos y equipos eléctricos, hasta el 10% de la Suma Asegurada del Contenido, máximo:"},{"$f":"CONCATENATE(Hoja1!C14,\" \",Hoja1!D14,\" \",Hoja1!E14, ,Hoja1!F14)","v":"10% del Monto Indemnizable, mínimo US$ 50"},"10% del Monto Indemnizable, mínimo","US$",{"$f":"IF(D14=CasaPLUS!V3,Hoja1!H14,Hoja1!H14*CasaPLUS!V6)","v":50},null,null,50]
[{"$f":"CasaPLUS!C50","v":"Asistencia médica urgente por lesiones en un robo con un límite por persona de US$1,000 y en agregado vigencia máximo:"},{"$f":"CONCATENATE(Hoja1!C15,\" \",Hoja1!D15,\" \",Hoja1!E15, ,Hoja1!F15)","v":"Sin deducible US$ "},"Sin deducible","US$"]
[{"$f":"CasaPLUS!C51","v":0},{"$f":"CONCATENATE(Hoja1!C16,\" \",Hoja1!D16,\" \",Hoja1!E16, ,Hoja1!F16)","v":" US$ "},null,"US$"]
[{"$f":"CasaPLUS!C52","v":"Alojamiento temporal por inhabilitación de la vivienda, con un límite mensual de US$ 1,000 y en agregado vigencia máximo: "},{"$f":"CONCATENATE(Hoja1!C17,\" \",Hoja1!D17,\" \",Hoja1!E17, ,Hoja1!F17)","v":"Sin deducible  "},"Sin deducible"]
[{"$f":"CasaPLUS!C53","v":"Daños durante el traslado del contenido asegurado al alojamiento temporal, hasta el  50% de la Suma Asegurada del Contenido, máximo:"},{"$f":"CONCATENATE(Hoja1!C18,\" \",Hoja1!D18,\" \",Hoja1!E18, ,Hoja1!F18)","v":"10% del Monto Indemnizable, mínimo US$ 50"},"10% del Monto Indemnizable, mínimo",{"$f":"D4","v":"US$"},{"$f":"IF(D18=CasaPLUS!V3,Hoja1!H18,Hoja1!H18*CasaPLUS!V6)","v":50},null,null,50]
[{"$f":"CasaPLUS!C54","v":"Perdida de alimentos en equipos de refrigeración, hasta el 5% de la Suma Asegurada del Contenido, máximo:"},{"$f":"CONCATENATE(Hoja1!C19,\" \",Hoja1!D19,\" \",Hoja1!E19, ,Hoja1!F19)","v":"10% del Monto Indemnizable, mínimo US$ 50"},"10% del Monto Indemnizable, mínimo","US$",{"$f":"IF(D19=CasaPLUS!V3,Hoja1!H19,Hoja1!H19*CasaPLUS!V6)","v":50},null,null,50]
[{"$f":"CasaPLUS!C55","v":"Pérdida de equipaje por viaje dentro o fuera del país, hasta el 10% de la Suma Asegurada del Contenido, máximo:"},{"$f":"CONCATENATE(Hoja1!C20,\" \",Hoja1!D20,\" \",Hoja1!E20, ,Hoja1!F20)","v":"10% del Monto Indemnizable, mínimo US$ 50"},"10% del Monto Indemnizable, mínimo","US$",{"$f":"IF(D20=CasaPLUS!V3,Hoja1!H20,Hoja1!H20*CasaPLUS!V6)","v":50},null,null,50]
[{"$f":"CasaPLUS!C56","v":"Deshonestidad o apropiación ilícita de trabajadores del hogar, por evento y en agregado vigencia hasta:"},{"$f":"CONCATENATE(Hoja1!C21,\" \",Hoja1!D21,\" \",Hoja1!E21, ,Hoja1!F21)","v":"10% del Monto Indemnizable, mínimo US$ 200"},"10% del Monto Indemnizable, mínimo",{"$f":"D4","v":"US$"},{"$f":"IF(D21=CasaPLUS!V3,Hoja1!H21,Hoja1!H21*CasaPLUS!V6)","v":200},null,null,200]
[{"$f":"CasaPLUS!C57","v":"Compensación por Muerte accidental del Asegurado o de su cónyuge o conviviente "},{"$f":"CONCATENATE(Hoja1!C22,\" \",Hoja1!D22,\" \",Hoja1!E22, ,Hoja1!F22)","v":"Sin deducible  "},"Sin deducible"]
[{"$f":"CasaPLUS!C58","v":"Gastos de Curación de empleados (Trabajadores del hogar), hasta  US$ 1,000 por evento, y en agregado vigencia hasta:"},{"$f":"CONCATENATE(Hoja1!C23,\" \",Hoja1!D23,\" \",Hoja1!E23, ,Hoja1!F23)","v":"Sin deducible  "},"Sin deducible"]
[{"$f":"CasaPLUS!C59","v":"Gastos de sepelio para el asegurado o su cónyuge o hijos, hasta"},{"$f":"CONCATENATE(Hoja1!C24,\" \",Hoja1!D24,\" \",Hoja1!E24, ,Hoja1!F24)","v":"Sin deducible  "},"Sin deducible"]
[{"$f":"CasaPLUS!C60","v":"Gastos de sepelio para el trabajador del hogar, hasta"},{"$f":"CONCATENATE(Hoja1!C25,\" \",Hoja1!D25,\" \",Hoja1!E25, ,Hoja1!F25)","v":"Sin deducible  "},"Sin deducible"]
[]
[]
[]
["DEDUCIBLES CM",null,null,"Moneda","Minimo "]
[{"$f":"+CasaMAR!C26","v":"Incendio y/o rayo, explosión, daños por agua, lluvia e inundación,  caída de aeronaves, impacto de vehículos terrestres, daños por humo."},{"$f":"CONCATENATE(Hoja1!C30,\" \",Hoja1!D30,\" \",Hoja1!E30, ,Hoja1!F30)","v":"10% del Monto Indemnizable mínimo US$ 500"},"10% del Monto Indemnizable mínimo",{"$f":"IF(CasaMAR!D8=CasaMAR!U3,CasaMAR!V3,CasaMAR!V4)","v":"US$"},{"$f":"IF(CasaMAR!$D$8=CasaMAR!$U$3,Hoja1!H30,Hoja1!H30*CasaMAR!$V$6)","v":500},null,null,500]
[{"$f":"+CasaMAR!C27","v":"Terremoto, temblor, erupción volcánica, maremoto (Tsunami), salida de mar, marejada, oleaje."},{"$f":"CONCATENATE(Hoja1!C31,\" \",Hoja1!D31,\" \",Hoja1!E31, ,Hoja1!F31)","v":"1% de la Suma Asegurada de la Vivienda + Contenido, minimo US$ 2000,lo que resulte mayor"},"1% de la Suma Asegurada de la Vivienda + Contenido, minimo",{"$f":"$D$30","v":"US$"},{"$f":"IF(CasaMAR!$D$8=CasaMAR!$U$3,Hoja1!H31,Hoja1!H31*CasaMAR!$V$6)","v":2000},",lo que resulte mayor",null,2000]
[{"$f":"+CasaMAR!C28","v":"Huelga y conmoción civil, daño malicioso, vandalismo y/o terrorismo, limite agregado vigencia hasta:"},{"$f":"CONCATENATE(Hoja1!C32,\" \",Hoja1!D32,\" \",Hoja1!E32, ,Hoja1!F32)","v":"5% del monto indemnizable mínimo US$ 500"},"5% del monto indemnizable mínimo",{"$f":"$D$30","v":"US$"},{"$f":"IF(CasaMAR!$D$8=CasaMAR!$U$3,Hoja1!H32,Hoja1!H32*CasaMAR!$V$6)","v":500},null,null,500]
[{"$f":"+CasaMAR!C29","v":0},{"$f":"CONCATENATE(Hoja1!C33,\" \",Hoja1!D33,\" \",Hoja1!E33, ,Hoja1!F33)","v":"  "}]
[{"$f":"+CasaMAR!C30","v":0},{"$f":"CONCATENATE(Hoja1!C34,\" \",Hoja1!D34,\" \",Hoja1!E34, ,Hoja1!F34)","v":"  "}]
[{"$f":"+CasaMAR!C31","v":0},{"$f":"CONCATENATE(Hoja1!C35,\" \",Hoja1!D35,\" \",Hoja1!E35, ,Hoja1!F35)","v":"  "}]
[{"$f":"+CasaMAR!C32","v":"Rotura de vidrios, espejos y unidades sanitarias, hasta el 10% de la Suma Asegurada de la Vivienda, máximo:"},{"$f":"CONCATENATE(Hoja1!C36,\" \",Hoja1!D36,\" \",Hoja1!E36, ,Hoja1!F36)","v":"10% del Monto Indemnizable, mínimo US$ 30"},"10% del Monto Indemnizable, mínimo",{"$f":"$D$30","v":"US$"},30]
[{"$f":"+CasaMAR!C34","v":"Gastos de remoción de escombros, hasta el 10% de la Suma Asegurada de la Vivienda + Contenido, máximo:"},{"$f":"CONCATENATE(Hoja1!C37,\" \",Hoja1!D37,\" \",Hoja1!E37, ,Hoja1!F37)","v":"Sin Deducible  "},"Sin Deducible"]
[{"$f":"+CasaMAR!C35","v":"Gastos de extinción y contención del siniestro, hasta el 10% de la Suma Asegurada de la Vivienda + Contenido, máximo:"},{"$f":"CONCATENATE(Hoja1!C38,\" \",Hoja1!D38,\" \",Hoja1!E38, ,Hoja1!F38)","v":"Sin Deducible  "},"Sin Deducible"]
[{"$f":"+CasaMAR!C48","v":"Robo de Instalaciones fijas, hasta el 20% de la Suma Asegurada de la Vivienda máximo"},{"$f":"CONCATENATE(Hoja1!C39,\" \",Hoja1!D39,\" \",Hoja1!E39, ,Hoja1!F39)","v":"15% del Monto Indemnizable, mínimo US$ 200"},"15% del Monto Indemnizable, mínimo",{"$f":"D30","v":"US$"},200]
[{"$f":"+CasaMAR!C38","v":"Responsabilidad Civil"},{"$f":"CONCATENATE(Hoja1!C40,\" \",Hoja1!D40,\" \",Hoja1!E40, ,Hoja1!F40)","v":"  "}]
[{"$f":"+CasaMAR!C36","v":"Responsabilidad civil Extracontractual Frente a Terceros limite en agregado vigencia, hasta:"},{"$f":"CONCATENATE(Hoja1!C41,\" \",Hoja1!D41,\" \",Hoja1!E41, ,Hoja1!F41)","v":" US$ 200"},null,{"$f":"$D$30","v":"US$"},200]
[{"$f":"+CasaMAR!C50","v":"Gastos por emergencias médicas de terceros, hasta US$ 1,000 por persona, y en agregado vigencia máximo:"},{"$f":"CONCATENATE(Hoja1!C42,\" \",Hoja1!D42,\" \",Hoja1!E42, ,Hoja1!F42)","v":"Sin Deducible  "},"Sin Deducible"]
[{"$f":"+CasaMAR!C49","v":"Responsabilidad Civil Patronal (frente al trabajador del hogar), por evento y en el agregado vigencia hasta:"},{"$f":"CONCATENATE(Hoja1!C43,\" \",Hoja1!D43,\" \",Hoja1!E43, ,Hoja1!F43)","v":"Sin Deducible  "},"Sin Deducible"]
[{"$f":"+CasaMAR!C39","v":"1.2.4 - Responsabilidad Civil por los daños personales que ocasione la posesión de mascotas, hasta:"},{"$f":"CONCATENATE(Hoja1!C44,\" \",Hoja1!D44,\" \",Hoja1!E44, ,Hoja1!F44)","v":"  "}]
[{"$f":"+CasaMAR!C40","v":"II. PROGRAMA FULL"},{"$f":"CONCATENATE(Hoja1!C45,\" \",Hoja1!D45,\" \",Hoja1!E45, ,Hoja1!F45)","v":"  "}]
[{"$f":"+CasaMAR!C41","v":"Robo"},{"$f":"CONCATENATE(Hoja1!C46,\" \",Hoja1!D46,\" \",Hoja1!E46, ,Hoja1!F46)","v":"  "}]
[{"$f":"+CasaMAR!C42","v":"Robo de Bienes Contenidos en la Vivienda hasta "},{"$f":"CONCATENATE(Hoja1!C47,\" \",Hoja1!D47,\" \",Hoja1!E47, ,Hoja1!F47)","v":"Eventos ocurridos entre Diciembre y Abril: 10% del Monto Indemnizable, mínimo  US$ 500"},"Eventos ocurridos entre Diciembre y Abril: 10% del Monto Indemnizable, mínimo ",{"$f":"$D$30","v":"US$"},500]
[{"$f":"+CasaMAR!C43","v":0},{"$f":"CONCATENATE(Hoja1!C48,\" \",Hoja1!D48,\" \",Hoja1!E48, ,Hoja1!F48)","v":"Eventos ocurridos entre Mayo a Noviembre: 10% del Monto Indemnizable, mínimo  US$ 2500"},"Eventos ocurridos entre Mayo a Noviembre: 10% del Monto Indemnizable, mínimo ",{"$f":"$D$30","v":"US$"},2500]
[{"$f":"+CasaMAR!C44","v":"2.1.2 Contenidos Especiales (joyas, alhajas, perlas, platería, relojes personales, obras de arte, pieles, instrumentos musicales y colecciones en general) que se encuentren dentro de la vivienda y con un límite por bien de US$1,000. La Suma Asegurada está limitada al 30% de la suma asegurada del Contenido, máximo:"},{"$f":"CONCATENATE(Hoja1!C49,\" \",Hoja1!D49,\" \",Hoja1!E49, ,Hoja1!F49)","v":"  "}]
[{"$f":"+CasaMAR!C45","v":"Robo de Dinero en efectivo dentro de la vivienda, hasta US$ 1,000 por evento y en agregado vigencia máximo:"},{"$f":"CONCATENATE(Hoja1!C50,\" \",Hoja1!D50,\" \",Hoja1!E50, ,Hoja1!F50)","v":" US$ 50"},null,{"$f":"$D$30","v":"US$"},50]
[{"$f":"+CasaMAR!C46","v":"2.1.4 - Dinero en Tránsito solo por Asalto, maximo"},{"$f":"CONCATENATE(Hoja1!C51,\" \",Hoja1!D51,\" \",Hoja1!E51, ,Hoja1!F51)","v":"  "}]
[{"$f":"+CasaMAR!C47","v":"Especiales"},{"$f":"CONCATENATE(Hoja1!C52,\" \",Hoja1!D52,\" \",Hoja1!E52, ,Hoja1!F52)","v":"  "}]
[{"$f":"+CasaMAR!C51","v":"Daños internos de equipos electrónicos y equipos eléctricos, hasta el 10% de la Suma Asegurada del Contenido, máximo:"},{"$f":"CONCATENATE(Hoja1!C53,\" \",Hoja1!D53,\" \",Hoja1!E53, ,Hoja1!F53)","v":"10% del Monto Indemnizable, mínimo US$ 50"},"10% del Monto Indemnizable, mínimo",{"$f":"$D$30","v":"US$"},50]
[{"$f":"+CasaMAR!C52","v":"Asistencia médica urgente por lesiones en un robo con un límite por persona de US$1,000 y en la vigencia hasta:"},{"$f":"CONCATENATE(Hoja1!C54,\" \",Hoja1!D54,\" \",Hoja1!E54, ,Hoja1!F54)","v":"Sin Deducible  "},"Sin Deducible"]
[{"$f":"+CasaMAR!C53","v":0},{"$f":"CONCATENATE(Hoja1!C55,\" \",Hoja1!D55,\" \",Hoja1!E55, ,Hoja1!F55)","v":"  "}]
[{"$f":"+CasaMAR!C54","v":"Alojamiento temporal por inhabilitación de la vivienda, con un límite mensual de  US$ 1,000 y en la vigencia hasta: "},{"$f":"CONCATENATE(Hoja1!C56,\" \",Hoja1!D56,\" \",Hoja1!E56, ,Hoja1!F56)","v":"Sin Deducible  "},"Sin Deducible"]
[{"$f":"+CasaMAR!C55","v":"Daños durante el traslado del contenido asegurado al alojamiento temporal, hasta el 50% de la Suma Asegurada del Contenido, máximo:"},{"$f":"CONCATENATE(Hoja1!C57,\" \",Hoja1!D57,\" \",Hoja1!E57, ,Hoja1!F57)","v":"10% del Monto Indemnizable, mínimo US$ 50"},"10% del Monto Indemnizable, mínimo",{"$f":"$D$30","v":"US$"},50]
[{"$f":"+CasaMAR!C56","v":"Perdida de alimentos en equipos de refrigeración, hasta el 5% de la Suma Asegurada del Contenido, máximo:"},{"$f":"CONCATENATE(Hoja1!C58,\" \",Hoja1!D58,\" \",Hoja1!E58, ,Hoja1!F58)","v":"10% del Monto Indemnizable, mínimo US$ 50"},"10% del Monto Indemnizable, mínimo",{"$f":"$D$30","v":"US$"},50]
[{"$f":"+CasaMAR!C57","v":"2.2.6 Pérdida de equipaje y/o de los bienes portados por el Asegurado y/o cónyuge y/o hijos en caso de viaje dentro o fuera del país, hasta el 10% de la Suma Asegurada del Contenido, máximo:"},{"$f":"CONCATENATE(Hoja1!C59,\" \",Hoja1!D59,\" \",Hoja1!E59, ,Hoja1!F59)","v":"  "}]
[{"$f":"+CasaMAR!C58","v":"Deshonestidad o apropiación ilícita de trabajadores del hogar, limite en agregado vigencia hasta:"},{"$f":"CONCATENATE(Hoja1!C60,\" \",Hoja1!D60,\" \",Hoja1!E60, ,Hoja1!F60)","v":"10% del Monto Indemnizable, mínimo US$ 200"},"10% del Monto Indemnizable, mínimo",{"$f":"$D$30","v":"US$"},200]
[{"$f":"+CasaMAR!C59","v":"Accidentes Personales "},{"$f":"CONCATENATE(Hoja1!C61,\" \",Hoja1!D61,\" \",Hoja1!E61, ,Hoja1!F61)","v":"  "}]
[{"$f":"+CasaMAR!C60","v":"Compensación por Muerte accidental del Asegurado o de su cónyuge o conviviente "},{"$f":"CONCATENATE(Hoja1!C62,\" \",Hoja1!D62,\" \",Hoja1!E62, ,Hoja1!F62)","v":"Sin Deducible  "},"Sin Deducible"]
[{"$f":"+CasaMAR!C61","v":"Gastos de Curación de empleados (Trabajadores del hogar), hasta US$ 1,000 por evento, maximo:"},{"$f":"CONCATENATE(Hoja1!C63,\" \",Hoja1!D63,\" \",Hoja1!E63, ,Hoja1!F63)","v":"Sin Deducible  "},"Sin Deducible"]
[{"$f":"+CasaMAR!C62","v":"2.3.3 Gastos de Sepelio del Asegurado y/o conyuge y/o hijos"},{"$f":"CONCATENATE(Hoja1!C64,\" \",Hoja1!D64,\" \",Hoja1!E64, ,Hoja1!F64)","v":"  "}]
[{"$f":"+CasaMAR!C63","v":"2.3.4 Gastos de Sepelio por muerte del trabajador del hogar"},{"$f":"CONCATENATE(Hoja1!C65,\" \",Hoja1!D65,\" \",Hoja1!E65, ,Hoja1!F65)","v":"  "}]